{"text_format":"1","workbook":"xlsx","n_sheets":12,"sheets":["DATOS","S. CONTRATO GENERAL COMPARATIVO","S. CONTRATO GENERAL SIN COMPARA","S. CONTRATO - Actividades Artis","Propuesta - Actividades Artis","S. CONTRATO - Transporte","Propuesta - Transporte","10. OTROSÍ","ORDEN DE COMPRA(Bienes Muebles)","ORDEN DE COMPRA(Material Bibli1","4. OPS ACTIVIDADES ARTISTICAS","Propuesta Productos y servicios"],"not_rendered":{"charts":0,"images":12,"macros":1,"external_links":0,"defined_names":0,"comments":0,"pivot_tables":0},"unopened":[],"bounds":{"document_bytes":16777216,"sheet_cells":100000,"rows_first":2000,"rows_last":500,"rows_between":2000,"halvings":0,"cell_chars":16384,"cell_head_chars":4096},"cells_cut":1,"cells_raw":0,"read":"whole","date_system":"1900"}

{"sheet":"DATOS","index":0,"n_rows":84,"n_cols":16,"rows_kept":84,"cut":false,"hidden":false,"merged":[]}
["Seleccione Área …","Seleccione Causal …","Seleccione ..","Seleccione ..","Seleccione mes ..","Seleccione clase de actividad …","Rango","Seleccione  …","Seleccione  …","Seleccione Cuenta  …","Seleccione Denominación …","Seleccione Subcuenta …","Seleccione Denominación …","Seleccione Solicitante y Supervisor …",null,"Seleccione Cargo…"]
["COORDINACION OPERATIVA","URGENCIA - NECESIDAD PRIORITARIA","NATURAL","CC ","ENERO",null,null,"BP VIRGILIO BARCO","001",11.0," GASTOS DE PERSONAL",1.101011001E9,"Salarios","CAROL ANDREA NIÑO SUAREZ",null,"REPRESENTANTE LEGAL"]
["OPERACIÓN ADMINISTRATIVA Y FINANCIERA","INFERIOR A 6 SMMLV","JURÍDICA","CE ","FEBRERO",null,null,"BP GABRIEL GARCIA MARQUEZ","002",12.0,"SERVICIOS PÚBLICOS",1.101011002E9,"Prestaciones sociales","JULIANA ALEJANDRA SANABRIA",null,"PROFESIONAL SENIOR PLANEADOR"]
["GESTIÓN TIC","NO PLURALIDAD DE OFERENTES",null,"NIT","MARZO",null,null,"BP JULIO MARIO SANTO DOMINGO","003",13.0,"ASEO Y CAFETERÍA",1.101011003E9,"Seguridad social","MARCELA RODRIGUEZ ORTIZ",null,"PROFESIONAL LÍDER"]
["PLANTAS FÍSICAS Y MOBILIARIO","PROYECTOS ESPECIALES",null,"PASAPORTE","ABRIL",null,null,"BP LA VICTORIA","004",14.0,"SERVICIO DE VIGILANCIA",1.101011004E9,"Parafiscales","CAMELO ROMERO OSCAR DAVID",null,"PROFESIONAL LÍDER"]
["COMUNICACIÓN Y DIVULGACIÓN","ACTIVIDADES ARTÍSTICAS Y/O ACADÉMICAS",null,null,"MAYO",null,null,"BP LA PEÑA","005",15.0,"GESTIÓN TIC",1.101011005E9,"Otros (SV Médicos / Capacitación / OP´s / Etc./ EMI)","JHOAN SEBASTIAN SACHICA PATIÑO",null,"PROFESIONAL SENIOR"]
["COLECCIONES","APROVECHAMIENTO ECONOMICO",null,null,"JUNIO",null,null,"BP MANUEL ZAPATA OLIVELLA-TINTAL","006",16.0,"PLANTAS FÍSICAS Y MOBILIARIO",1.101011006E9,"Monetización","BARBOSA RODRIGUEZ MARTHA ALEXANDRA",null,"PROFESIONAL COORDINADOR"]
["TALENTO HUMANO","APOYO A LA GESTIÓN",null,null,"JULIO",null,null,"BP VENECIA","007",21.0,"COLECCIONES",1.101011007E9,"Provisionamiento","GARCIA TABORDA PAULA MAGALY",null,"PROFESIONAL SENIOR "]
["CONTRATACIÓN","N/A",null,null,"AGOSTO",null,null,"BP PERDOMO SOLEDAD LAMPREA","008",22.0,"SERVICIOS PARA EL ACCESO A LA INFORMACIÓN Y EL CONOCIMIENTO",1.201011001E9,"Acueducto y Alcantarillado","VENEGAS BERNAL LUIS GUILLERMO",null,"PROFESIONAL JUNIOR"]
["GESTIÓN DOCUMENTAL",null,null,null,"SEPTIEMBRE",null,null,"BP USAQUEN","009",23.0,"COMUNICACIÓN Y DIVULGACIÓN",1.201011002E9,"Energía","REDONDO POLO EVELYN DEL PILAR",null,"PROFESIONAL SENIOR"]
["OTRA. CUAL?___________________________",null,null,null,"OCTUBRE",null,null,"BP CARLOS E. RESTREPO","010",31.0,"GASTOS GENERALES",1.201011003E9,"Teléfono","DANIELA VIZCAYA LONDOÑO",null,"PROFESIONAL SENIOR"]
[null,null,null,null,"NOVIEMBRE",null,null,"BP FRANCISCO JÓSE DE CALDAS-SUBA","011",null,null,1.301011001E9,"Personal para Aseo","FREDDY MAURICIO VARGAS LINDARTE",null,"PROFESIONAL COORDINADOR "]
[null,null,null,null,"DICIEMBRE",null,null,"BP LA GIRALDA","012",null,null,1.301011002E9,"Insumos de Aseo y Cafetería","ROJAS RODRIGUEZ ANGELICA",null,"PROFESIONAL SENIOR"]
[null,null,null,null,"MES A MES",null,null,"BP LAS FERIAS","013",null,null,1.301011003E9,"Alquiler Dispensadores","OTRA. CUAL?___________________________"]
[null,null,null,null,null,null,null,"BP PUENTE ARANDA","014",null,null,1.301011004E9,"Desodorización"]
[null,null,null,null,null,null,null,"BP TIMIZA","015",null,null,1.401011001E9,"Servicio de Vigilancia"]
[null,null,null,null,null,null,null,"BP ARBORIZADORA ALTA","016",null,null,1.401011002E9,"Servicio de Transporte de Valores"]
[null,null,null,null,null,null,null,"BP RAFAEL URIBE URIBE","017",null,null,1.501011001E9,"Servicio de internet y Datos"]
[null,null,null,null,null,null,null,"BP EL DEPORTE-CAMPÍN","018",null,null,1.501011002E9,"Repuestos, mantenimientos preventivos y correctivos, varios"]
[null,null,null,null,null,null,null,"BP BOSA","019",null,null,1.501011003E9,"Mesa de ayuda"]
[null,null,null,null,null,null,null,"BP LA MARICHUELA","020",null,null,1.501011004E9,"Mejoras en la red de datos de las bibliotecas"]
[null,null,null,null,null,null,null,"BP ESCOLAR SUMAPAZ","021",null,null,1.501011005E9,"Adquisición de equipos, comunicaciones, seguridad y periféricos"]
[null,null,null,null,null,null,null,"BP ESCOLAR PASQUILLA","022",null,null,1.501011006E9,"Sistema de seguridad perimetral"]
[null,null,null,null,null,null,null,"BP EL PARQUE","023",null,null,1.501011007E9,"Renovaciones de licencias, hosting, EzProxy y certificados de seguridad"]
[null,null,null,null,null,null,null,"ESPACIOS NO CONVENCIONALES","024",null,null,1.501011008E9,"Sistema de información Sinbad"]
[null,null,null,null,null,null,null,"BP CARCEL DISTRITAL","025",null,null,1.601011001E9,"Mantenimiento ascensores"]
[null,null,null,null,null,null,null,"BIBLOMOVIL","026",null,null,1.601011002E9,"Mantenimiento jardines"]
[null,null,null,null,null,null,null,"BP MIRADOR","027",null,null,1.601011003E9,"Mantenimiento estanques agua"]
[null,null,null,null,null,null,null,"NIVEL CENTRAL","028",null,null,1.601011004E9,"Lavado de tanques agua potable"]
[null,null,null,null,null,null,null,"CONTRATISTA","029",null,null,1.601011005E9,"Control de plagas"]
[null,null,null,null,null,null,null,"SECRETARIA DISTRITAL DE CULTURA Y DEPORTE","030",null,null,1.601011006E9,"Servicio área protegida"]
[null,null,null,null,null,null,null,null,"TODAS",null,null,1.601011007E9,"Mantenimiento cajas registradoras y reconfiguración"]
[null,null,null,null,null,null,null,null,null,null,null,1.601011008E9,"Suministro combustibles planta eléctrica"]
[null,null,null,null,null,null,null,null,null,null,null,1.601011009E9,"Mantenimiento plantas eléctricas, circuitos, subestaciones"]
[null,null,null,null,null,null,null,null,null,null,null,1.60101101E9,"Mantenimiento ups y reguladores"]
[null,null,null,null,null,null,null,null,null,null,null,1.601011011E9,"Insumos y repuestos eléctricos"]
[null,null,null,null,null,null,null,null,null,null,null,1.601011012E9,"Insumos Ferretería y repuestos"]
[null,null,null,null,null,null,null,null,null,null,null,1.601011013E9,"Mantenimiento equipos de ventilación y AA"]
[null,null,null,null,null,null,null,null,null,null,null,1.601011014E9,"Suministros EPP"]
[null,null,null,null,null,null,null,null,null,null,null,1.601011015E9,"Mantenimiento equipos de bombeo y agua presión"]
[null,null,null,null,null,null,null,null,null,null,null,1.601011016E9,"Lavado de muebles tapizados, cortinería, alfombras y otros"]
[null,null,null,null,null,null,null,null,null,null,null,1.601011017E9,"Refrendación certificación ascensores"]
[null,null,null,null,null,null,null,null,null,null,null,1.601011018E9,"Recarga de extintores"]
[null,null,null,null,null,null,null,null,null,null,null,1.601011019E9,"Botiquines y elementos complementarios"]
[null,null,null,null,null,null,null,null,null,null,null,1.60101102E9,"Atención emergencias"]
[null,null,null,null,null,null,null,null,null,null,null,1.601011021E9,"Gestión ambiental"]
[null,null,null,null,null,null,null,null,null,null,null,1.601011022E9,"Mantenimiento locativo bibliotecas (pintura, impermeabilización, otros)"]
[null,null,null,null,null,null,null,null,null,null,null,1.601011023E9,"Mobiliario tipo bibliotecario"]
[null,null,null,null,null,null,null,null,null,null,null,1.601011024E9,"Mobiliario complementario y reposición"]
[null,null,null,null,null,null,null,null,null,null,null,1.601011025E9,"reposición de mobiliario módulos PPP"]
[null,null,null,null,null,null,null,null,null,null,null,1.601011026E9,"Mantenimiento de PPP y bibloestaciones"]
[null,null,null,null,null,null,null,null,null,null,null,1.601011027E9,"Asesoría gestión ambiental"]
[null,null,null,null,null,null,null,null,null,null,null,1.601011028E9,"Asesoría obras, diseño y supervisión"]
[null,null,null,null,null,null,null,null,null,null,null,1.601011029E9]
[null,null,null,null,null,null,null,null,null,null,null,1.60101103E9,"Certificacion Trabajo en alturas"]
[null,null,null,null,null,null,null,null,null,null,null,1.601011031E9,"Apoyo a la gestión SST"]
[null,null,null,null,null,null,null,null,null,null,null,2.101010104E9,"Adquisición de material bibliográfico"]
[null,null,null,null,null,null,null,null,null,null,null,2.101010106E9,"Suscripción de publicaciones seriadas"]
[null,null,null,null,null,null,null,null,null,null,null,2.101010108E9,"Suscripción de recursos digitales"]
[null,null,null,null,null,null,null,null,null,null,null,2.101010109E9,"Procesamiento técnico de material bibliográfico - Contratos catalogadores"]
[null,null,null,null,null,null,null,null,null,null,null,2.10101011E9,"Procesamiento técnico de material bibliográfico - Empaste"]
[null,null,null,null,null,null,null,null,null,null,null,2.101010111E9,"Procesamiento técnico de material bibliográfico - Registros de autoridades normalizados"]
[null,null,null,null,null,null,null,null,null,null,null,2.101010112E9,"Adquisición de insumos para la preparación física de material bibliográfico"]
[null,null,null,null,null,null,null,null,null,null,null,2.201010208E9,"Maletas viajeras"]
[null,null,null,null,null,null,null,null,null,null,null,2.304030403E9,"Mantenimiento y actualización de la marca - Espacios bibliotecarios no convencionales"]
[null,null,null,null,null,null,null,null,null,null,null,2.304030404E9,"Mantenimiento y actualización de la marca - Espacios bibliotecarios"]
[null,null,null,null,null,null,null,null,null,null,null,2.304030405E9,"Mantenimiento y actualización de la marca - Nuevos espacios bibliotecarios"]
[null,null,null,null,null,null,null,null,null,null,null,2.304030506E9,"Implementación de estrategia de relacionamiento con medios - Local, distrital y nacional"]
[null,null,null,null,null,null,null,null,null,null,null,2.304030508E9,"Seguimiento a la estrategia de relacionamiento con medios - Local, distrital y nacional"]
[null,null,null,null,null,null,null,null,null,null,null,2.304030811E9,"Comunicación interna - Campañas"]
[null,null,null,null,null,null,null,null,null,null,null,2.304030812E9,"Comunicación interna - Boletines"]
[null,null,null,null,null,null,null,null,null,null,null,2.304030715E9,"Campañas digitales de comunicación"]
[null,null,null,null,null,null,null,null,null,null,null,2.304030716E9,"Plataformas para la distribución, alojamiento y transmisión de contenido"]
[null,null,null,null,null,null,null,null,null,null,null,2.304030717E9,"Estrategia de comunicación digital - Boletines"]
[null,null,null,null,null,null,null,null,null,null,null,2.304030718E9,"Estrategia de comunicación - Eventos"]
[null,null,null,null,null,null,null,null,null,null,null,2.30403092E9,"Producción de contenido sonoro - Podcast"]
[null,null,null,null,null,null,null,null,null,null,null,2.304030622E9,"Producción de contenido audiovisual"]
[null,null,null,null,null,null,null,null,null,null,null,2.304030623E9,"Equipos para la producción de contenido audiovisual"]
[null,null,null,null,null,null,null,null,null,null,null,3.101011001E9,"Servicio mensajeria motorizada"]
[null,null,null,null,null,null,null,null,null,null,null,3.101011002E9,"Bolsa: Servicio transporte Nivel Central Cumplimiento Misional"]
[null,null,null,null,null,null,null,null,null,null,null,3.101011003E9,"Caja Menor Servicio de Transporte"]
[null,null,null,null,null,null,null,null,null,null,null,3.101011004E9,"Compra y suministro de papelería para la operación de la Red."]
[null,null,null,null,null,null,null,null,null,null,null,3.101011005E9,"Arrendamiento Biblioteca Pública Bosa"]
[null,null,null,null,null,null,null,null,null,null,null,3.101011006E9,"Arrendamiento Biblioteca Pública Perdomo"]

{"sheet":"S. CONTRATO GENERAL COMPARATIVO","index":1,"n_rows":88,"n_cols":28,"rows_kept":88,"cut":false,"hidden":false,"merged":[[1,18,4,18],[2,6,9,12],[2,14,9,17],[9,2,9,4],[10,2,10,6],[11,2,11,7],[11,8,11,10],[11,11,11,17],[12,2,12,17],[13,2,13,17],[14,2,14,12],[14,13,14,17],[15,2,15,7],[15,8,15,12],[19,8,19,9],[19,10,19,11],[19,12,21,12],[16,2,16,4],[16,5,16,8],[16,9,16,10],[16,11,16,17],[17,2,17,17],[18,2,18,17],[19,2,19,7],[15,13,15,14],[24,13,28,14],[15,15,15,17],[16,19,20,19],[19,14,19,17],[20,14,20,17],[21,14,21,17],[21,19,24,19],[23,15,23,17],[24,15,28,17],[20,2,20,5],[20,7,20,11],[21,2,21,5],[21,6,21,11],[22,2,22,17],[23,2,23,14],[24,6,24,12],[42,16,42,17],[43,16,43,17],[46,19,51,19],[47,16,47,17],[48,16,48,17],[49,16,49,17],[50,16,50,17],[51,16,51,17],[35,16,35,17],[36,16,36,17],[37,16,37,17],[38,16,38,17],[39,16,39,17],[40,16,40,17],[41,16,41,17],[45,16,45,17],[46,16,46,17],[41,4,41,5],[42,4,42,5],[43,4,43,5],[44,4,44,5],[44,16,44,17],[45,2,45,7],[46,2,46,7],[24,2,24,5],[25,2,25,5],[25,6,25,12],[26,2,26,5],[26,6,26,12],[27,2,27,5],[27,6,27,12],[31,11,31,12],[31,13,31,14],[28,2,28,5],[28,6,28,12],[30,2,30,7],[30,11,30,12],[30,13,30,14],[30,15,30,17],[31,15,31,17],[31,2,31,7],[32,2,32,17],[33,2,33,7],[33,8,33,10],[33,11,33,13],[33,14,33,17],[34,16,34,17],[34,4,34,5],[35,4,35,5],[36,4,36,5],[37,4,37,5],[38,4,38,5],[39,4,39,5],[40,4,40,5],[47,2,47,7],[48,2,48,7],[49,2,49,7],[50,2,50,7],[51,2,51,7],[52,2,52,7],[53,2,53,10],[30,9,30,10],[31,9,31,10],[45,8,51,9],[45,11,51,12],[45,14,51,15],[52,8,52,9],[52,11,52,12],[52,14,52,15],[52,16,52,17],[53,13,53,14],[53,15,53,17],[54,2,55,17],[56,2,56,17],[57,2,57,17],[60,8,60,10],[60,11,60,12],[58,2,58,6],[58,7,58,11],[58,12,58,13],[58,14,58,17],[59,2,59,9],[59,10,59,17],[60,13,60,17],[67,11,67,15],[67,16,68,17],[68,12,68,13],[60,2,60,7],[61,2,61,17],[62,2,62,17],[63,2,64,17],[65,2,66,17],[67,2,67,6],[67,7,68,10],[68,2,68,4],[68,5,68,6],[69,2,69,4],[69,5,69,6],[69,7,69,10],[69,12,69,13],[71,16,71,17],[73,2,73,10],[73,11,73,12],[84,10,84,11],[84,13,84,15],[85,13,85,15],[85,16,85,17],[86,13,86,15],[86,16,86,17],[84,2,84,6],[85,2,85,6],[85,7,85,9],[85,10,85,11],[86,2,86,6],[86,7,86,9],[86,10,86,11],[72,2,72,6],[74,2,74,3],[74,4,74,5],[74,6,74,7],[74,8,74,9],[74,11,74,12],[74,13,74,15],[71,2,71,15],[72,7,72,11],[72,12,72,13],[72,14,72,15],[72,16,73,17],[72,19,74,19],[73,13,73,15],[74,16,74,17],[76,2,76,17],[77,3,77,10],[77,11,77,17],[78,3,78,10],[78,11,80,17],[79,3,79,10],[80,3,80,10],[82,2,82,17],[83,2,83,6],[83,7,83,9],[83,10,83,11],[84,7,84,9],[84,16,84,17],[87,2,87,6],[87,7,87,9],[87,10,87,11],[87,13,87,15],[87,16,87,17]]}
[null,null,null,null,null,null,null,null,null,null,null,null,null,null,null,null,null,null,null,"Notas:"]
[null,null,null,null,null,null,null,null,null,null,null,null,null,null,null,null,null,null,"FORMATO No. 2 - MC"]
[null,null,null,null,null,null,"INSUMO DE CONTRATACIÓN DE BIBLORED\nREQUERIMIENTO DE CONTRATACIÓN\nÁREA CONTRACTUAL, ADMINISTRATIVA Y FINANCIERA\nPRODUCTOS Y SERVICIOS CON PLURALIDAD \nDE OFERENTES\nFormato No. 2-\nMC- Insumo de Contratación"]
[]
[]
[]
[]
[]
[]
[null,null,"CONTRATO N° 275 DE 2021"]
[null,null,"CONSORCIO BIBLORED CINDE-PROYECTAMOS"]
[null,null,"FECHA DE ELABORACIÓN:"]
[]
[null,null,"1. DATOS DE LA LÍNEA SOLICITANTE Y QUE SUPERVISARÁ EL CONTRATO"]
[null,null,"ÁREA",null,null,null,null,null,null,null,null,null,null,"Seleccione Área …"]
[null,null,"SOLICITANTE Y SUPERVISOR:",null,null,null,null,null,"Seleccione Solicitante y Supervisor …",null,null,null,null,"CONSECUTIVO:"]
[null,null,"CARGO:",null,null,"Seleccione Cargo…",null,null,null,"FIRMA SUPERVISOR",null,null,null,null,null,null,null,null,null,"En caso de nivel mayor de autorización, según la cuantía, se deberá incluir las casillas y relación de cargos y personal a avalar el documento. "]
[]
[null,null,"2. INFORMACIÓN SELECCIÓN DEL CONTRATISTA"]
[null,null,"MODALIDAD DE SELECCIÓN (SELECCIONAR A,B,C O D)",null,null,null,null,null,"A - DIRECTA",null,"N/A",null,"B - INVITACIÓN A COTIZAR\n(Proveedores BibloRed)","Oferente 1"]
[null,null,"C - CONVOCATORIA ABIERTA",null,null,null,"Proceso No.",null,null,null,null,null,null,"Oferente 2"]
[null,null,"D. OTRA",null,null,null,null,null,null,null,null,null,null,"Oferente 3",null,null,null,null,null,"En caso de invitación o convocatoria a mayores persona PJ O PN, se deberán aumentar las casillas respectivas. ",null,null,null,null,null,null,null," "]
[null,null,"La presente contratación se encuentra inmersa y  se aprueba dentro del plan de acción del área supervisora; y/o se autorizó  en los siguientes comités "]
[null,null,"PLAN DE ACCION",null,null,null,null,null,null,null,null,null,null,null,null,"PLAN OPERATIVO - MES"]
[null,null,"LÍNEA BIBLORED RESPONSABLE ",null,null,null,null,null,null,null,null,null,null,"Número-versión de plan de acción:\n\n"]
[null,null,"\nLÍNEAS DEL PLAN"]
[null,null,"\nESTRATEGIA "]
[null,null,"\nPROGRAMA"]
[null,null,"ACCIONES"]
[]
[null,null,"ACTA DE APROBACIÓN Y AUTORIZACIÓN:",null,null,null,null,null,"SI","COMITÉ ",null,"Técnico y Administrativo",null,"FECHA"]
[null,null,"ACTA DE APROBACIÓN Y AUTORIZACIÓN:",null,null,null,null,null,null,"COMITÉ OTRO ¿CUAL?",null,"Mesa técnica",null,"FECHA"]
[]
[null,null,"COMPARATIVO OFERENTES / ESTUDIO DE MERCADO \n(Por producto y/o servicio a contratar)",null,null,null,null,null,"OFERENTE \n1 ",null,null,"OFERENTE \n2",null,null,"OFERENTE \nSELECCIONADO"]
[null,null,"N.","BIBLIOTECA","PRODUCTO O SERVICIO",null,"UNIDAD MEDIDA","CANT.","MARCA","PRECIO\nUNITARIO","PRECIO TOTAL","MARCA","PRECIO\nUNITARIO","PRECIO TOTAL","MARCA","PRECIO\nUNITARIO","PRECIO TOTAL"]
[null,null,null,null,null,null,null,null,null,null,{"$f":"H36*J36","v":0},null,null,{"$f":"M36*H36","v":0},null,null,{"$f":"H36*P36","v":0}]
[null,null,null,null,null,null,null,null,null,null,0,null,null,0,null,null,0]
[null,null,null,null,null,null,null,null,null,null,0,null,null,0,null,null,0]
[null,null,null,null,null,null,null,null,null,null,0,null,null,0,null,null,0]
[null,null,null,null,null,null,null,null,null,null,0,null,null,0,null,null,0]
[null,null,null,null,null,null,null,null,null,null,0,null,null,0,null,null,0]
[null,null,null,null,null,null,null,null,null,null,0,null,null,0,null,null,0]
[null,null,null,null,null,null,null,null,null,null,0,null,null,0,null,null,0]
[null,null,null,null,null,null,null,null,null,null,0,null,null,0,null,null,0]
[null,null,null,null,null,null,null,null,null,null,0,null,null,0,null,null,0]
[null,null,"SUB-TOTAL:",null,null,null,null,null,"OBSERVACIONES ",null,{"$f":"SUM(K36:K45)","v":0},"OBSERVACIONES ",null,{"$f":"SUM(N36:N45)","v":0},"OBSERVACIONES",null,{"$f":"SUM(Q36:R45)","v":0}]
[null,null,"DESCUENTO ",null,null,null,null,null,null,null,null,null,null,null,null,null,null,null,null,"Estas casillas de Descuento, administración, imprevisto y utilidad, favor dejar enunciadas sólo en caso de uso. "]
[null,null,"ADMINISTRACIÓN"]
[null,null,"IMPREVISTOS"]
[null,null,"UTILIDAD"]
[null,null,"IVA ",null,null,null,null,null,null,null,{"$f":"K46*0.19","v":0},null,null,{"$f":"N46*0.19","v":0},null,null,0.0]
[null,null,"TOTAL",null,null,null,null,null,null,null,{"$f":"K46+K51","v":0},null,null,{"$f":"N46+N51","v":0},null,null,0.0]
[null,null,"RELACIÓN DE COTIZACIONES",null,null,null,null,null,"Cotización No.",null,null,"Cotización No.",null,null,"Cotización No."]
[null,null,"Servicio no determinado - Presupuesto asignado a ejecutar por necesidad y según tárifa aprobada - aplica Bolsas presupuestales",null,null,null,null,null,null,null,null,"SI","NO","PRESUPUESTO ASIGNADO"]
[null,null,"OBSERVACIONES"]
[]
[]
[null,null,"3. CONTRATISTA SELECCIONADO"]
[null,null,"PERSONA",null,null,null,null,"Seleccione ..",null,null,null,null,"REGISTRO NO."]
[null,null,"NOMBRE COMPLETO DEL CONTRATISTA / RAZÓN SOCIAL:"]
[null,null,"DOCUMENTO DE IDENTIFICACIÓN",null,null,null,null,null,"Seleccione ..",null,null,"NÚMERO"]
[]
[null,null,"4. INFORMACIÓN PARA LA PROYECCIÓN DEL CONTRATO"]
[null,null,"NECESIDAD A SATISFACER:"]
[]
[null,null,"OBLIGACIONES ESPECIFICAS DEL CONTRATISTA:"]
[]
[null,null,"VIGENCIA DEL CONTRATO",null,null,null,null,"PRECIO TOTAL DEL SERVICIO/ COMPRA",null,null,null,"FORMA DE PAGO",null,null,null,null,"ANTICIPO 40%"]
[null,null,"INICIO",null,null,"TÉRMINO",null,null,null,null,null,"Mensual","A la satisfacción del objeto",null,"Otra","Cual:"]
[null,null,null,null,null,null,null,{"$f":"+Q52","v":0},null,null,null,null,null,null,null,null,"SÍ","NO"]
[]
[null,null,"5. INFORMACIÓN PRESUPUESTAL"]
[null,null,"CUENTA",null,null,null,null,"Seleccione Cuenta  …",null,null,null,null,"SUB CUENTA:",null,"Seleccione Subcuenta …",null,"INFORMACIÓN VERIFICADA CON FINANCIERA"]
[null,null,"CENTRO OPERATIVO:",null,null,null,null,null,null,null,null,"PRESUPUESTO MES"]
[null,null,"Seleccione  …",null,"Seleccione  …",null,"Seleccione  …",null,"Seleccione  …",null,"Seleccione  …","Otros centros operativos:",null,null,null,null,"SI"]
[]
[null,null,"6. ACLARACIONES Y MODIFICACIÓNES DE FORMA - A MANO ALZADA DEL INSUMO DE CONTRATACIÓN"]
[null,null,"No.","Aclaración / Modificación",null,null,null,null,null,null,null,"Aprobación Supervisor"]
[null,null,1.0,null,null,null,null,null,null,null,null,"Firma"]
[null,null,2.0]
[null,null,3.0]
[]
[null,null,"7. ESPACIO PARA DILIGENCIAR POR  LAS REVISIONES"]
[null,null,null,null,null,null,null,"NOMBRE",null,null,"FIRMA"]
[null,null,"ELABORÓ ",null,null,null,null,null,null,null,null,null,"CARGO:",null,null,null,"Recibió dd/mm/aaa"]
[null,null,"REVISIÓN TÉCNICA POR PARTE DE LA SUPERVISIÓN DEL CONTRATO: Declaro que he revisado técnicamente la presente solicitud de contratación, conforme la necesidad técnica expuesta ,las autorizaciones respectivas del comité técnico y administrativo y mesa técnica relacionadas , asi como sus valores,caracteristicas del producto y/o servicio y demás detalles de forma y de fondo establecidos en el presente documento y sus anexos de la etapa pre contractual conforme al manual de contratación establecido 275 de 2021.",null,null,null,null,null,null,null,null,null,"CARGO:",null,null,null,"Recibió dd/mm/aaa"]
[null,null,"REVISIÓN JURIDICA : Se revisó desde el aspecto jurídico la presente solicitud de contratación de acuerdo a lo estipulado en el manual de contratación para el contrato 275 de 2021. Declaró que se cumple desde el aspecto juridico los requisitos previos destinados a la etapa pre contractual la presente compra y/o servicio.",null,null,null,null,null,null,null,null,null,"CARGO:",null,null,null,"Recibió dd/mm/aaa"]
[null,null,"REVISIÓN FINANCIERA: Se revisó desde el aspecto financiero las cifras de cada producto y/o servicio a contratar , su derivación tributaria y demás aspectos financieros de conformimdad con el manual de contratación . Declaro con la firma de este documento que se ajusta a la normatividad tributaria y que cumple con los aspectos financieros expuestos en el manual de contratación 275 de 2021",null,null,null,null,null,null,null,null,null,"CARGO:",null,null,null,"Recibió dd/mm/aaa"]

{"sheet":"S. CONTRATO GENERAL SIN COMPARA","index":2,"n_rows":75,"n_cols":20,"rows_kept":75,"cut":false,"hidden":false,"merged":[[72,16,72,17],[73,2,73,6],[73,7,73,9],[73,10,73,11],[73,13,73,15],[73,16,73,17],[74,16,74,17],[75,2,75,17],[62,13,62,15],[62,16,62,17],[65,18,75,18],[66,1,75,1],[66,3,66,10],[66,11,68,17],[67,3,67,10],[68,3,68,10],[69,2,69,17],[70,10,70,11],[71,2,71,6],[71,7,71,9],[71,10,71,11],[71,13,71,15],[71,16,71,17],[72,2,72,6],[72,7,72,9],[72,10,72,11],[72,13,72,15],[74,2,74,6],[74,7,74,9],[74,10,74,11],[74,13,74,15],[18,2,18,7],[19,2,19,17],[15,11,15,17],[16,2,16,17],[17,2,17,17],[18,8,18,9],[18,10,18,11],[18,13,18,17],[18,19,22,19],[22,2,22,5],[22,6,22,12],[23,2,23,5],[23,6,23,12],[24,2,24,5],[24,6,24,12],[25,6,25,12],[25,2,25,5],[27,2,27,7],[27,9,27,10],[27,11,27,12],[27,13,27,14],[28,2,28,7],[28,9,28,10],[31,13,31,14],[31,15,31,17],[28,11,28,12],[28,13,28,14],[28,15,28,17],[29,2,29,17],[30,2,30,17],[31,3,31,5],[31,6,31,8],[35,13,35,14],[36,13,36,14],[37,13,37,14],[38,13,38,14],[21,13,25,14],[21,15,25,17],[23,19,26,19],[27,15,27,17],[33,15,39,17],[34,13,34,14],[35,19,38,19],[39,13,39,14],[1,18,4,18],[2,7,8,12],[2,14,8,17],[8,2,8,6],[9,2,9,10],[9,11,9,13],[9,14,9,16],[10,2,10,7],[10,8,10,10],[10,11,10,17],[11,2,11,17],[12,2,12,17],[13,2,13,12],[13,13,13,17],[14,2,14,7],[14,8,14,12],[14,13,14,14],[14,15,14,17],[15,2,15,4],[15,5,15,8],[15,9,15,10],[20,2,20,14],[20,15,20,17],[21,2,21,5],[21,6,21,12],[32,3,32,5],[32,6,32,8],[32,13,32,14],[32,15,32,17],[33,2,33,11],[33,13,33,14],[34,2,34,11],[35,2,35,11],[36,2,36,11],[37,2,37,11],[38,2,38,11],[39,2,39,11],[40,2,40,7],[40,8,40,17],[59,2,59,15],[59,16,59,17],[60,2,60,6],[60,7,60,11],[60,12,60,13],[60,14,60,15],[60,16,61,17],[61,13,61,15],[61,2,61,10],[61,11,61,12],[62,2,62,3],[62,4,62,5],[62,6,62,7],[62,8,62,9],[62,11,62,12],[46,7,46,11],[46,12,46,13],[41,2,41,10],[41,13,41,14],[41,15,41,17],[42,2,43,17],[44,2,44,17],[45,2,45,17],[46,14,46,17],[46,2,46,6],[47,2,47,10],[47,11,47,17],[48,2,48,7],[48,8,48,10],[48,11,48,12],[48,13,48,17],[49,2,49,17],[50,2,50,17],[51,2,52,17],[53,2,54,17],[55,7,56,10],[55,11,55,15],[55,16,56,17],[56,12,56,13],[55,2,55,6],[56,2,56,4],[56,5,56,6],[57,2,57,4],[57,5,57,6],[57,7,57,10],[57,12,57,13],[64,2,64,17],[65,3,65,10],[65,11,65,17],[70,2,70,6],[70,7,70,9]]}
[null,null,null,null,null,null,null,null,null,null,null,null,null,null,null,null,null,null,null,"Notas:"]
[null,null,null,null,null,null,null,null,null,null,null,null,null,null,null,null,null,null,"FORMATO No. 2 - MC"]
[null,null,null,null,null,null,null,"INSUMO DE CONTRATACIÓN DE BIBLORED\nREQUERIMIENTO DE CONTRATACIÓN\nÁREA CONTRACTUAL, ADMINISTRATIVA Y FINANCIERA\nPRODUCTOS Y SERVICIOS SIN PLURALIDAD \nDE OFERENTES\nFormato No. 2-\nMC- Insumo de Contratación"]
[]
[]
[]
[]
[]
[null,null,"CONTRATO N° 275 DE 2021"]
[null,null,"CONSORCIO BIBLORED CINDE-PROYECTAMOS"]
[null,null,"FECHA DE ELABORACIÓN:"]
[]
[null,null,"1. DATOS DE LA LÍNEA SOLICITANTE Y QUE SUPERVISARÁ EL CONTRATO"]
[null,null,"ÁREA",null,null,null,null,null,null,null,null,null,null,"Seleccione Área …"]
[null,null,"SOLICITANTE Y SUPERVISOR:",null,null,null,null,null,"Seleccione Solicitante y Supervisor …",null,null,null,null,"CONSECUTIVO:"]
[null,null,"CARGO:",null,null,"Seleccione Cargo…",null,null,null,"FIRMA SUPERVISOR"]
[]
[null,null,"2. INFORMACIÓN SELECCIÓN DEL CONTRATISTA"]
[null,null,"MODALIDAD DE SELECCIÓN (SELECCIONAR A,B)",null,null,null,null,null,"A - DIRECTA",null,"Seleccione Causal …",null,"B. OTRA",null,null,null,null,null,null,"En caso de nivel mayor de autorización, según la cuantía, se deberá incluir las casillas y relación de cargos y personal a avalar el documento. "]
[null,null,"La presente contratación se encuentra inmersa y  se aprueba dentro del plan de acción del área supervisora; y/o se autorizó  en los siguientes comités "]
[null,null,"PLAN DE ACCION",null,null,null,null,null,null,null,null,null,null,null,null,"PLAN OPERATIVO - MES"]
[null,null,"LÍNEA BIBLORED RESPONSABLE ",null,null,null,null,null,null,null,null,null,null,"Número-versión de plan de acción:\n\n"]
[null,null,"\nLÍNEAS DEL PLAN"]
[null,null,"\nESTRATEGIA ",null,null,null,null,null,null,null,null,null,null,null,null,null,null,null,null,"En caso de invitación o convocatoria a mayores persona PJ O PN, se deberán aumentar las casillas respectivas. "]
[null,null,"\nPROGRAMA"]
[null,null,"ACCIONES"]
[]
[null,null,"ACTA DE APROBACIÓN Y AUTORIZACIÓN:",null,null,null,null,null,"SI","COMITÉ ",null,"Técnico y Administrativo",null,"FECHA"]
[null,null,"ACTA DE APROBACIÓN Y AUTORIZACIÓN:",null,null,null,null,null,null,"COMITÉ OTRO ¿CUAL?",null,"Mesa técnica",null,"FECHA"]
[]
[null,null,"RELACIÓN PRODUCTOS Y/O SERVICIOS A CONTRATAR"]
[null,null,"N.","BIBLIOTECA",null,null,"PRODUCTO O SERVICIO",null,null,"UNIDAD MEDIDA","MARCA","CANT.","PRECIO\nUNITARIO","PRECIO TOTAL",null,"OBSERVACIÓN"]
[null,null,1.0]
[null,null,"SUB-TOTAL:",null,null,null,null,null,null,null,null,null,{"$f":"SUM(M33)","v":0},{"$f":"SUM(N33:O33)","v":0}]
[null,null,"DESCUENTO "]
[null,null,"ADMINISTRACIÓN",null,null,null,null,null,null,null,null,null,null,null,null,null,null,null,null,"Estas casillas de Descuento, administración, imprevisto y utilidad, favor dejar enunciadas sólo en caso de uso. "]
[null,null,"IMPREVISTOS"]
[null,null,"UTILIDAD"]
[null,null,"IVA "]
[null,null,"TOTAL",null,null,null,null,null,null,null,null,null,null,{"$f":"N34+N39","v":0}]
[null,null,"COTIZACIÓN:"]
[null,null,"Servicio no determinado - Presupuesto asignado a ejecutar por necesidad y según tárifa aprobada",null,null,null,null,null,null,null,null,"SI","NO","PRESUPUESTO ASIGNADO",null,{"$f":"N40","v":0}]
[null,null,"OBSERVACIONES: "]
[]
[]
[null,null,"3. CONTRATISTA SELECCIONADO"]
[null,null,"PERSONA",null,null,null,null,"Seleccione ..",null,null,null,null,"REGISTRO NO."]
[null,null,"NOMBRE COMPLETO DEL CONTRATISTA / RAZÓN SOCIAL:"]
[null,null,"DOCUMENTO DE IDENTIFICACIÓN",null,null,null,null,null,"Seleccione ..",null,null,"NUMERO"]
[]
[null,null,"4. INFORMACIÓN PARA LA PROYECCIÓN DEL CONTRATO"]
[null,null,"NECESIDAD A SATISFACER:"]
[]
[null,null,"OBLIGACIONES ESPECIFICAS DEL CONTRATISTA:"]
[]
[null,null,"VIGENCIA DEL CONTRATO",null,null,null,null,"PRECIO TOTAL DEL SERVICIO/ COMPRA",null,null,null,"FORMA DE PAGO",null,null,null,null,"ANTICIPO 40%"]
[null,null,"INICIO",null,null,"TERMINO",null,null,null,null,null,"Mensual","A la satisfacción del objeto",null,"Otra","Cual:"]
[null,null,null,null,null,null,null,null,null,null,null,null,null,null,null,null,"SÍ","xNO"]
[]
[null,null,"5. INFORMACIÓN PRESUPUESTAL"]
[null,null,"CUENTA:",null,null,null,null,"Seleccione  …",null,null,null,null,"SUB CUENTA:",null,"Seleccione Subcuenta …",null,"INFORMACIÓN VERIFICADA CON FINANCIERA"]
[null,null,"CENTRO OPERATIVO:",null,null,null,null,null,null,null,null,"PRESUPUESTO MES",null,"Seleccione mes .."]
[null,null,"Seleccione  …",null,"Seleccione  …",null,"Seleccione  …",null,"Seleccione  …",null,"Seleccione  …","Otros centros operativos:",null,"Seleccione  …",null,null,"SI"]
[]
[null,null,"6. ACLARACIONES Y MODIFICACIÓNES DE FORMA - A MANO ALZADA DEL INSUMO DE CONTRATACIÓN"]
[null,null,"No.","Aclaración / Modificación",null,null,null,null,null,null,null,"Aprobación Supervisor"]
[null,null,1.0,null,null,null,null,null,null,null,null,"Firma"]
[null,null,2.0]
[null,null,3.0]
[null,null,"7. ESPACIO PARA DILIGENCIAR POR  LAS REVISIONES"]
[null,null,null,null,null,null,null,"NOMBRE",null,null,"FIRMA"]
[null,null,"ELABORÓ ",null,null,null,null,null,null,null,null,null,"CARGO:",null,null,null,"Recibió dd/mm/aaa"]
[null,null,"REVISIÓN TÉCNICA POR PARTE DE LA SUPERVISIÓN DEL CONTRATO: Declaro que he revisado técnicamente la presente solicitud de contratación, conforme la necesidad técnica expuesta ,las autorizaciones respectivas del comité técnico y administrativo y mesa técnica relacionadas , asi como sus valores,caracteristicas del producto y/o servicio y demás detalles de forma y de fondo establecidos en el presente documento y sus anexos de la etapa pre contractual conforme al manual de contratación establecido 275 de 2021.",null,null,null,null,null,null,null,null,null,"CARGO:",null,null,null,"Recibió dd/mm/aaa"]
[null,null,"REVISIÓN JURIDICA : Se revisó desde el aspecto jurídico la presente solicitud de contratación de acuerdo a lo estipulado en el manual de contratación para el contrato 275 de 2021. Declaró que se cumple desde el aspecto juridico los requisitos previos destinados a la etapa pre contractual la presente compra y/o servicio.",null,null,null,null,null,null,null,null,null,"CARGO:",null,null,null,"Recibió dd/mm/aaa"]
[null,null,"REVISIÓN FINANCIERA: Se revisó desde el aspecto financiero las cifras de cada producto y/o servicio a contratar , su derivación tributaria y demás aspectos financieros de conformimdad con el manual de contratación . Declaro con la firma de este documento que se ajusta a la normatividad tributaria y que cumple con los aspectos financieros expuestos en el manual de contratación 275 de 2021",null,null,null,null,null,null,null,null,null,"CARGO:",null,null,null,"Recibió dd/mm/aaa"]

{"sheet":"S. CONTRATO - Actividades Artis","index":3,"n_rows":77,"n_cols":18,"rows_kept":77,"cut":false,"hidden":true,"merged":[[0,16,3,16],[1,5,8,11],[1,12,8,15],[8,1,8,4],[9,1,9,9],[10,7,10,9],[10,10,10,16],[10,1,10,6],[11,1,11,15],[12,1,12,15],[13,1,13,2],[13,3,13,8],[13,9,13,10],[13,11,13,15],[14,1,14,5],[14,6,14,10],[14,11,14,12],[14,13,14,15],[15,1,15,2],[15,3,15,6],[15,7,15,8],[15,9,15,15],[16,1,16,15],[17,1,17,15],[18,6,18,7],[18,8,18,9],[18,10,18,11],[18,13,18,15],[21,1,21,4],[22,1,22,4],[24,1,24,4],[24,5,24,11],[25,1,25,4],[25,5,25,11],[22,5,22,11],[23,1,23,4],[23,5,23,11],[18,1,18,5],[19,1,19,15],[20,1,20,13],[20,14,20,15],[21,5,21,11],[21,12,25,13],[21,14,25,15],[28,10,28,11],[28,12,28,13],[27,1,27,6],[27,8,27,9],[27,10,27,11],[27,12,27,13],[27,14,27,15],[28,8,28,9],[28,14,28,15],[30,8,30,9],[30,10,30,11],[30,12,30,13],[30,14,30,15],[28,1,28,6],[29,1,29,6],[29,8,29,9],[29,10,29,11],[29,12,29,13],[29,14,29,15],[30,1,30,6],[48,5,48,7],[48,14,48,15],[35,5,35,7],[35,14,35,15],[36,5,36,7],[36,14,36,15],[36,17,48,21],[41,5,41,7],[42,5,42,7],[40,14,40,15],[41,14,41,15],[39,14,39,15],[42,14,42,15],[43,5,43,7],[43,14,43,15],[44,5,44,7],[44,14,44,15],[45,5,45,7],[45,14,45,15],[46,5,46,7],[46,14,46,15],[47,5,47,7],[47,14,47,15],[47,1,47,4],[48,1,48,4],[49,1,52,9],[49,10,49,11],[50,10,50,13],[51,10,51,13],[52,10,52,13],[53,1,53,13],[54,1,54,15],[55,1,55,15],[56,1,56,4],[56,5,56,9],[56,10,56,11],[56,12,56,15],[57,1,57,8],[57,9,57,15],[58,1,58,5],[58,6,58,8],[58,9,58,10],[58,11,58,15],[59,1,59,15],[60,1,60,15],[61,1,62,15],[63,1,64,15],[65,1,65,4],[65,5,66,8],[65,9,65,13],[65,14,66,15],[66,10,66,11],[66,1,66,2],[66,3,66,4],[67,1,67,2],[67,3,67,4],[67,5,67,8],[67,10,67,11],[69,1,69,15],[76,1,76,5],[76,6,76,10],[76,12,76,14],[76,15,76,16],[70,2,70,9],[70,10,70,15],[71,2,71,9],[71,10,73,15],[72,2,72,9],[73,2,73,9],[75,1,75,16],[32,1,32,15],[33,1,33,15],[34,1,34,3],[34,4,34,5],[34,6,34,7],[34,8,34,10],[34,12,34,15],[37,1,37,4],[37,5,37,7],[36,1,36,4],[38,1,38,4],[37,14,37,15],[38,14,38,15],[49,14,49,15],[50,14,50,15],[51,14,51,15],[52,14,52,15],[53,14,53,15],[39,1,39,4],[39,5,39,7],[38,5,38,7],[40,1,40,4],[40,5,40,7],[35,1,35,4],[41,1,41,4],[42,1,42,4],[43,1,43,4],[44,1,44,4],[45,1,45,4],[46,1,46,4]]}
[null,null,null,null,null,null,null,null,null,null,null,null,null,null,null,null,"FORMATO No. 2 - MC"]
[null,null,null,null,null,"INSUMO DE CONTRATACIÓN DE BIBLORED\nSOLICITUD DE CONTRATACIÓN\nÁREA CONTRACTUAL, ADMINISTRATIVA Y FINANCIERA\nACTIVIDADES ARTÍSTICAS Y/O ACADÉMICAS"]
[]
[]
[]
[]
[]
[]
[null,"CONTRATO N° 275 DE 2021"]
[null,"CONSORCIO BIBLORED CINDE-PROYECTAMOS"]
[null,"FECHA DE ELABORACIÓN:"]
[]
[null,"1. DATOS DE LA LÍNEA SOLICITANTE Y QUE SUPERVISARÁ EL CONTRATO"]
[null,"GERENCIA/SUBGERENCIA:",null,null,null,null,null,null,null,"ÁREA"]
[null,"SOLICITANTE Y SUPERVISOR:",null,null,null,null,null,null,null,null,null,"CONSECUTIVO:"]
[null,"CARGO:",null,null,null,null,null,"FIRMA SUPERVISOR"]
[]
[null,"2. INFORMACIÓN SELECCIÓN DEL CONTRATISTA"]
[null,"MODALIDAD DE SELECCIÓN (SELECCIONAR A,B o C)",null,null,null,null,"A - DIRECTA",null,"ACTIVIDADES ARTÍSTICAS Y/O ACADÉMICAS",null,"B - CONVOCATORIA ABIERTA",null,"Proceso No."]
[null,"La presente contratación se encuentra inmersa y  se aprueba dentro del plan de acción del área supervisora; y/o se autorizó  en los siguientes comités "]
[null,"PLAN DE ACCION",null,null,null,null,null,null,null,null,null,null,null,null,"PLAN OPERATIVO - MES"]
[null,"LÍNEA BIBLORED RESPONSABLE ",null,null,null,null,null,null,null,null,null,null,"Número-versión de plan de acción:\n\n"]
[null,"\nLÍNEAS DEL PLAN"]
[null,"\nESTRATEGIA "]
[null,"\nPROGRAMA"]
[null,"ACCIONES"]
[]
[null,"ACTA DE APROBACIÓN Y AUTORIZACIÓN:",null,null,null,null,null,"SI","COMITÉ ",null,"Técnico ",null,"FECHA"]
[null,"ACTA DE APROBACIÓN Y AUTORIZACIÓN:",null,null,null,null,null,"SI","COMITÉ ",null,"Administrativo y Financiero",null,"FECHA"]
[null,"ACTA DE APROBACIÓN Y AUTORIZACIÓN:",null,null,null,null,null,"NO","COMITÉ ",null,"Directivo",null,"FECHA"]
[null,"ACTA DE APROBACIÓN Y AUTORIZACIÓN:",null,null,null,null,null,null,"COMITÉ OTRO ¿CUAL?",null,null,null,"FECHA"]
[]
[]
[null,"2. PROPUESTA COMERCIAL Y DE SERVICIOS PARA ACTIVIDADES ARTÍSTICAS Y/O ACADÉMICAS PARA BIBLORED"]
[null,"Presupuesto del mes:",null,null,null,null,"Cuenta:",null,null,null,null,"Sub-Cuenta:"]
[null,"CLASE DE ACTIVIDAD",null,null,null,"BIBLIOTECA",null,null,"CE.OP","CUENTA","FECHA","HORA/ACTIVIDAD","CANT.\nHORAS/ACTIVIDAD","RANGO DE COSTO\nHORA/ACTIVIDAD","TOTAL"]
[null,{"$f":"IFERROR(VLOOKUP($I$35,DATOS!$N:$O,2,FALSE),\" \")","v":" "},null,null,null," ",null,null,{"$f":"IFERROR(VLOOKUP(F37,DATOS!$H:$I,2,FALSE),\" \")","v":" "},{"$f":"IFERROR(VLOOKUP($I$35,DATOS!$N:$O,2,FALSE),\" \")","v":" "},null,null,null,{"$f":"IFERROR(VLOOKUP(B37,DATOS!$F:$G,2,FALSE),\" \")","v":" "},{"$f":"IFERROR(VLOOKUP(C37,DATOS!$F:$G,2,FALSE),\" \")","v":" "},null,null,"La estipulación del rango de costo debe ser aprobada en el comité técnico respectivo, donde se indique la justificación de trayectoría, experiencia y demás criterios que establezca razonablemente el valor aprobado y a pagar por la actividad respectiva. "]
[null,{"$f":"IFERROR(VLOOKUP($I$35,DATOS!$N:$O,2,FALSE),\" \")","v":" "},null,null,null," ",null,null,{"$f":"IFERROR(VLOOKUP(F38,DATOS!$H:$I,2,FALSE),\" \")","v":" "},{"$f":"IFERROR(VLOOKUP($I$35,DATOS!$N:$O,2,FALSE),\" \")","v":" "},null,null,null,{"$f":"IFERROR(VLOOKUP(B38,DATOS!$F:$G,2,FALSE),\" \")","v":" "},{"$f":"IFERROR(VLOOKUP(C38,DATOS!$F:$G,2,FALSE),\" \")","v":" "}]
[null,{"$f":"IFERROR(VLOOKUP($I$35,DATOS!$N:$O,2,FALSE),\" \")","v":" "},null,null,null," ",null,null,{"$f":"IFERROR(VLOOKUP(F39,DATOS!$H:$I,2,FALSE),\" \")","v":" "},{"$f":"IFERROR(VLOOKUP($I$35,DATOS!$N:$O,2,FALSE),\" \")","v":" "},null,null,null,{"$f":"IFERROR(VLOOKUP(B39,DATOS!$F:$G,2,FALSE),\" \")","v":" "},{"$f":"IFERROR(VLOOKUP(C39,DATOS!$F:$G,2,FALSE),\" \")","v":" "}]
[null,{"$f":"IFERROR(VLOOKUP($I$35,DATOS!$N:$O,2,FALSE),\" \")","v":" "},null,null,null," ",null,null,{"$f":"IFERROR(VLOOKUP(F40,DATOS!$H:$I,2,FALSE),\" \")","v":" "},{"$f":"IFERROR(VLOOKUP($I$35,DATOS!$N:$O,2,FALSE),\" \")","v":" "},null,null,null,{"$f":"IFERROR(VLOOKUP(B40,DATOS!$F:$G,2,FALSE),\" \")","v":" "},{"$f":"IFERROR(VLOOKUP(C40,DATOS!$F:$G,2,FALSE),\" \")","v":" "}]
[null,{"$f":"IFERROR(VLOOKUP($I$35,DATOS!$N:$O,2,FALSE),\" \")","v":" "},null,null,null," ",null,null,{"$f":"IFERROR(VLOOKUP(F41,DATOS!$H:$I,2,FALSE),\" \")","v":" "},{"$f":"IFERROR(VLOOKUP($I$35,DATOS!$N:$O,2,FALSE),\" \")","v":" "},null,null,null,{"$f":"IFERROR(VLOOKUP(B41,DATOS!$F:$G,2,FALSE),\" \")","v":" "},{"$f":"IFERROR(VLOOKUP(C41,DATOS!$F:$G,2,FALSE),\" \")","v":" "}]
[null,{"$f":"IFERROR(VLOOKUP($I$35,DATOS!$N:$O,2,FALSE),\" \")","v":" "},null,null,null," ",null,null,{"$f":"IFERROR(VLOOKUP(F42,DATOS!$H:$I,2,FALSE),\" \")","v":" "},{"$f":"IFERROR(VLOOKUP($I$35,DATOS!$N:$O,2,FALSE),\" \")","v":" "},null,null,null,{"$f":"IFERROR(VLOOKUP(B42,DATOS!$F:$G,2,FALSE),\" \")","v":" "},{"$f":"IFERROR(VLOOKUP(C42,DATOS!$F:$G,2,FALSE),\" \")","v":" "}]
[null,{"$f":"IFERROR(VLOOKUP($I$35,DATOS!$N:$O,2,FALSE),\" \")","v":" "},null,null,null," ",null,null,{"$f":"IFERROR(VLOOKUP(F43,DATOS!$H:$I,2,FALSE),\" \")","v":" "},{"$f":"IFERROR(VLOOKUP($I$35,DATOS!$N:$O,2,FALSE),\" \")","v":" "},null,null,null,{"$f":"IFERROR(VLOOKUP(B43,DATOS!$F:$G,2,FALSE),\" \")","v":" "},{"$f":"IFERROR(VLOOKUP(C43,DATOS!$F:$G,2,FALSE),\" \")","v":" "}]
[null,{"$f":"IFERROR(VLOOKUP($I$35,DATOS!$N:$O,2,FALSE),\" \")","v":" "},null,null,null," ",null,null,{"$f":"IFERROR(VLOOKUP(F44,DATOS!$H:$I,2,FALSE),\" \")","v":" "},{"$f":"IFERROR(VLOOKUP($I$35,DATOS!$N:$O,2,FALSE),\" \")","v":" "},null,null,null,{"$f":"IFERROR(VLOOKUP(B44,DATOS!$F:$G,2,FALSE),\" \")","v":" "},{"$f":"IFERROR(VLOOKUP(C44,DATOS!$F:$G,2,FALSE),\" \")","v":" "}]
[null,{"$f":"IFERROR(VLOOKUP($I$35,DATOS!$N:$O,2,FALSE),\" \")","v":" "},null,null,null," ",null,null,{"$f":"IFERROR(VLOOKUP(F45,DATOS!$H:$I,2,FALSE),\" \")","v":" "},{"$f":"IFERROR(VLOOKUP($I$35,DATOS!$N:$O,2,FALSE),\" \")","v":" "},null,null,null,{"$f":"IFERROR(VLOOKUP(B45,DATOS!$F:$G,2,FALSE),\" \")","v":" "},{"$f":"IFERROR(VLOOKUP(C45,DATOS!$F:$G,2,FALSE),\" \")","v":" "}]
[null,{"$f":"IFERROR(VLOOKUP($I$35,DATOS!$N:$O,2,FALSE),\" \")","v":" "},null,null,null," ",null,null,{"$f":"IFERROR(VLOOKUP(F46,DATOS!$H:$I,2,FALSE),\" \")","v":" "},{"$f":"IFERROR(VLOOKUP($I$35,DATOS!$N:$O,2,FALSE),\" \")","v":" "},null,null,null,{"$f":"IFERROR(VLOOKUP(B46,DATOS!$F:$G,2,FALSE),\" \")","v":" "},{"$f":"IFERROR(VLOOKUP(C46,DATOS!$F:$G,2,FALSE),\" \")","v":" "}]
[null,{"$f":"IFERROR(VLOOKUP($I$35,DATOS!$N:$O,2,FALSE),\" \")","v":" "},null,null,null," ",null,null,{"$f":"IFERROR(VLOOKUP(F47,DATOS!$H:$I,2,FALSE),\" \")","v":" "},{"$f":"IFERROR(VLOOKUP($I$35,DATOS!$N:$O,2,FALSE),\" \")","v":" "},null,null,null,{"$f":"IFERROR(VLOOKUP(B47,DATOS!$F:$G,2,FALSE),\" \")","v":" "},{"$f":"IFERROR(VLOOKUP(C47,DATOS!$F:$G,2,FALSE),\" \")","v":" "}]
[null,{"$f":"IFERROR(VLOOKUP($I$35,DATOS!$N:$O,2,FALSE),\" \")","v":" "},null,null,null," ",null,null,{"$f":"IFERROR(VLOOKUP(F48,DATOS!$H:$I,2,FALSE),\" \")","v":" "},{"$f":"IFERROR(VLOOKUP($I$35,DATOS!$N:$O,2,FALSE),\" \")","v":" "},null,null,null,{"$f":"IFERROR(VLOOKUP(B48,DATOS!$F:$G,2,FALSE),\" \")","v":" "},{"$f":"IFERROR(VLOOKUP(C48,DATOS!$F:$G,2,FALSE),\" \")","v":" "}]
[null,{"$f":"IFERROR(VLOOKUP($I$35,DATOS!$N:$O,2,FALSE),\" \")","v":" "},null,null,null," ",null,null,{"$f":"IFERROR(VLOOKUP(F49,DATOS!$H:$I,2,FALSE),\" \")","v":" "},{"$f":"IFERROR(VLOOKUP($I$35,DATOS!$N:$O,2,FALSE),\" \")","v":" "},null,null,null,{"$f":"IFERROR(VLOOKUP(B49,DATOS!$F:$G,2,FALSE),\" \")","v":" "},{"$f":"IFERROR(VLOOKUP(C49,DATOS!$F:$G,2,FALSE),\" \")","v":" "}]
[null,"OBSERVACIONES",null,null,null,null,null,null,null,null,"VALOR TOTAL SIN IVA (Aplica sólo para persona jurídica)",null,{"$f":"SUM(M37:M49)","v":0},0,{"$f":"SUM(O37:P49)/1.19","v":0}]
[null,null,null,null,null,null,null,null,null,null,"IVA (Para persona jurídica)",null,null,null,{"$f":"O50*0.19","v":0}]
[null,null,null,null,null,null,null,null,null,null,"TOTAL (Para persona jurídica)",null,null,null,{"$f":"O50+O51","v":0}]
[null,null,null,null,null,null,null,null,null,null,"TOTAL (Para persona natural)",null,null,null,{"$f":"SUM(O37:P49)","v":0}]
[null,"NÚMERO DE COTIZACIÓN O PROPUESTA COMERCIAL:"]
[]
[null,"3. CONTRATISTA SELECCIONADO"]
[null,"PERSONA",null,null,null,"Seleccione ..",null,null,null,null,"REGISTRO NO."]
[null,"NOMBRE COMPLETO DEL CONTRATISTA / RAZÓN SOCIAL:"]
[null,"DOCUMENTO DE IDENTIFICACIÓN",null,null,null,null,"CC ",null,null,"NUMERO"]
[]
[null,"4. INFORMACIÓN PARA LA PROYECCIÓN DEL CONTRATO"]
[null,"NECESIDAD A SATISFACER:"]
[]
[null,"OBLIGACIONES ESPECIFICAS DEL CONTRATISTA:"]
[]
[null,"VIGENCIA DEL CONTRATO",null,null,null,"PRECIO TOTAL DEL SERVICIO/ COMPRA",null,null,null,"FORMA DE PAGO",null,null,null,null,"ANTICIPO 40%"]
[null,"INICIO",null,"TERMINO",null,null,null,null,null,"Mensual","A la satisfacción del objeto",null,"Otra","Cual:"]
[null,null,null,null,null,null,null,null,null,null,null,null,null,null,"SÍ","NO"]
[]
[null,"5. ACLARACIONES Y MODIFICACIÓNES DE FORMA A MANO ALZADA DEL INSUMO DE CONTRATACIÓN"]
[null,"No.","Aclaración / Modificación",null,null,null,null,null,null,null,"Aprobación Supervisor"]
[null,1.0,null,null,null,null,null,null,null,null,"Firma"]
[null,2.0]
[null,3.0]
[]
[null,"7. ESPACIO PARA DILIGENCIAR POR  LAS REVISIONES"]
[null,"ELABORÓ ",null,null,null,null,null,null,null,null,null,"CARGO:",null,null,null,"Recibió dd/mm/aaa"]

{"sheet":"Propuesta - Actividades Artis","index":4,"n_rows":16,"n_cols":15,"rows_kept":16,"cut":false,"hidden":true,"merged":[[0,0,0,15],[1,1,1,4],[1,5,1,7],[1,14,1,15],[2,1,2,4],[2,5,2,7],[2,14,2,15],[3,1,3,4],[3,5,3,7],[3,14,3,15],[4,1,4,4],[4,5,4,7],[5,1,5,4],[5,5,5,7],[6,1,6,4],[6,5,6,7],[7,1,7,4],[7,5,7,7],[8,1,8,4],[8,5,8,7],[9,5,9,7],[11,14,11,15],[12,14,12,15],[13,14,13,15],[14,14,14,15],[15,14,15,15],[4,14,4,15],[5,14,5,15],[6,14,6,15],[7,14,7,15],[8,14,8,15],[9,14,9,15],[10,14,10,15],[13,1,13,4],[13,5,13,7],[14,1,14,4],[14,5,14,7],[15,0,15,11],[9,1,9,4],[10,1,10,4],[10,5,10,7],[11,1,11,4],[11,5,11,7],[12,1,12,4],[12,5,12,7]]}
["PROPUESTA COMERCIAL Y DE SERVICIOS PARA ACTIVIDADES ARTÍSTICAS Y/O ACADÉMICAS PARA BIBLORED"]
["NOMBRE DE ACTIVIDAD","CLASE DE ACTIVIDAD",null,null,null,"BIBLIOTECA",null,null,"CE.OP","CUENTA","FECHA","HORA","CANT.\nHORAS","VALOR \nHORA","TOTAL"]
[null,"Seleccione clase de actividad …",null,null,null,"Seleccione  …",null,null,{"$f":"IFERROR(VLOOKUP(F3,DATOS!$H:$I,2,FALSE),\" \")","v":"Seleccione  …"},{"$f":"IFERROR(VLOOKUP($K$19,DATOS!$N:$O,2,FALSE),\" \")","v":" "},null,null,null,{"$f":"IFERROR(VLOOKUP(B3,DATOS!$F:$G,2,FALSE),\" \")","v":"Rango"},{"$f":"M3*N3","v":"#VALUE!"}]
[null,"Seleccione clase de actividad …",null,null,null,"Seleccione  …",null,null,{"$f":"IFERROR(VLOOKUP(F4,DATOS!$H:$I,2,FALSE),\" \")","v":"Seleccione  …"},{"$f":"IFERROR(VLOOKUP($K$19,DATOS!$N:$O,2,FALSE),\" \")","v":" "},null,null,null,{"$f":"IFERROR(VLOOKUP(B4,DATOS!$F:$G,2,FALSE),\" \")","v":"Rango"},"#VALUE!"]
[null,"Seleccione clase de actividad …",null,null,null,"Seleccione  …",null,null,{"$f":"IFERROR(VLOOKUP(F5,DATOS!$H:$I,2,FALSE),\" \")","v":"Seleccione  …"},{"$f":"IFERROR(VLOOKUP($K$19,DATOS!$N:$O,2,FALSE),\" \")","v":" "},null,null,null,{"$f":"IFERROR(VLOOKUP(B5,DATOS!$F:$G,2,FALSE),\" \")","v":"Rango"},"#VALUE!"]
[null,"Seleccione clase de actividad …",null,null,null,"Seleccione  …",null,null,{"$f":"IFERROR(VLOOKUP(F6,DATOS!$H:$I,2,FALSE),\" \")","v":"Seleccione  …"},{"$f":"IFERROR(VLOOKUP($K$19,DATOS!$N:$O,2,FALSE),\" \")","v":" "},null,null,null,{"$f":"IFERROR(VLOOKUP(B6,DATOS!$F:$G,2,FALSE),\" \")","v":"Rango"},"#VALUE!"]
[null,"Seleccione clase de actividad …",null,null,null,"Seleccione  …",null,null,{"$f":"IFERROR(VLOOKUP(F7,DATOS!$H:$I,2,FALSE),\" \")","v":"Seleccione  …"},{"$f":"IFERROR(VLOOKUP($K$19,DATOS!$N:$O,2,FALSE),\" \")","v":" "},null,null,null,{"$f":"IFERROR(VLOOKUP(B7,DATOS!$F:$G,2,FALSE),\" \")","v":"Rango"},"#VALUE!"]
[null,"Seleccione clase de actividad …",null,null,null,"Seleccione  …",null,null,{"$f":"IFERROR(VLOOKUP(F8,DATOS!$H:$I,2,FALSE),\" \")","v":"Seleccione  …"},{"$f":"IFERROR(VLOOKUP($K$19,DATOS!$N:$O,2,FALSE),\" \")","v":" "},null,null,null,{"$f":"IFERROR(VLOOKUP(B8,DATOS!$F:$G,2,FALSE),\" \")","v":"Rango"},"#VALUE!"]
[null,"Seleccione clase de actividad …",null,null,null,"Seleccione  …",null,null,{"$f":"IFERROR(VLOOKUP(F9,DATOS!$H:$I,2,FALSE),\" \")","v":"Seleccione  …"},{"$f":"IFERROR(VLOOKUP($K$19,DATOS!$N:$O,2,FALSE),\" \")","v":" "},null,null,null,{"$f":"IFERROR(VLOOKUP(B9,DATOS!$F:$G,2,FALSE),\" \")","v":"Rango"},"#VALUE!"]
[null,"Seleccione clase de actividad …",null,null,null,"Seleccione  …",null,null,{"$f":"IFERROR(VLOOKUP(F10,DATOS!$H:$I,2,FALSE),\" \")","v":"Seleccione  …"},{"$f":"IFERROR(VLOOKUP($K$19,DATOS!$N:$O,2,FALSE),\" \")","v":" "},null,null,null,{"$f":"IFERROR(VLOOKUP(B10,DATOS!$F:$G,2,FALSE),\" \")","v":"Rango"},"#VALUE!"]
[null,"Seleccione clase de actividad …",null,null,null,"Seleccione  …",null,null,{"$f":"IFERROR(VLOOKUP(F11,DATOS!$H:$I,2,FALSE),\" \")","v":"Seleccione  …"},{"$f":"IFERROR(VLOOKUP($K$19,DATOS!$N:$O,2,FALSE),\" \")","v":" "},null,null,null,{"$f":"IFERROR(VLOOKUP(B11,DATOS!$F:$G,2,FALSE),\" \")","v":"Rango"},"#VALUE!"]
[null,"Seleccione clase de actividad …",null,null,null,"Seleccione  …",null,null,{"$f":"IFERROR(VLOOKUP(F12,DATOS!$H:$I,2,FALSE),\" \")","v":"Seleccione  …"},{"$f":"IFERROR(VLOOKUP($K$19,DATOS!$N:$O,2,FALSE),\" \")","v":" "},null,null,null,{"$f":"IFERROR(VLOOKUP(B12,DATOS!$F:$G,2,FALSE),\" \")","v":"Rango"},"#VALUE!"]
[null,"Seleccione clase de actividad …",null,null,null,"Seleccione  …",null,null,{"$f":"IFERROR(VLOOKUP(F13,DATOS!$H:$I,2,FALSE),\" \")","v":"Seleccione  …"},{"$f":"IFERROR(VLOOKUP($K$19,DATOS!$N:$O,2,FALSE),\" \")","v":" "},null,null,null,{"$f":"IFERROR(VLOOKUP(B13,DATOS!$F:$G,2,FALSE),\" \")","v":"Rango"},"#VALUE!"]
[null,"Seleccione clase de actividad …",null,null,null,"Seleccione  …",null,null,{"$f":"IFERROR(VLOOKUP(F14,DATOS!$H:$I,2,FALSE),\" \")","v":"Seleccione  …"},{"$f":"IFERROR(VLOOKUP($K$19,DATOS!$N:$O,2,FALSE),\" \")","v":" "},null,null,null,{"$f":"IFERROR(VLOOKUP(B14,DATOS!$F:$G,2,FALSE),\" \")","v":"Rango"},"#VALUE!"]
[null,"Seleccione clase de actividad …",null,null,null,"Seleccione  …",null,null,{"$f":"IFERROR(VLOOKUP(F15,DATOS!$H:$I,2,FALSE),\" \")","v":"Seleccione  …"},{"$f":"IFERROR(VLOOKUP($K$19,DATOS!$N:$O,2,FALSE),\" \")","v":" "},null,null,null,{"$f":"IFERROR(VLOOKUP(B15,DATOS!$F:$G,2,FALSE),\" \")","v":"Rango"},"#VALUE!"]
["TOTAL ",null,null,null,null,null,null,null,null,null,null,null,{"$f":"SUM(M3:M15)","v":0},0,{"$f":"SUM(O3:P15)","v":"#VALUE!"}]

{"sheet":"S. CONTRATO - Transporte","index":5,"n_rows":84,"n_cols":16,"rows_kept":84,"cut":false,"hidden":true,"merged":[[12,1,12,2],[16,1,16,2],[18,1,18,2],[2,5,11,11],[2,12,11,15],[13,1,13,6],[13,7,13,9],[13,10,13,16],[14,1,14,15],[15,1,15,15],[16,3,16,8],[16,9,16,10],[16,11,16,15],[17,1,17,5],[17,6,17,10],[17,11,17,12],[17,13,17,15],[21,8,21,9],[21,10,23,10],[18,3,18,6],[18,7,18,8],[18,9,18,15],[19,1,19,15],[20,1,20,15],[21,6,21,7],[21,12,21,15],[23,12,23,15],[25,12,25,13],[25,14,25,15],[26,12,28,13],[26,14,28,15],[30,12,30,13],[30,14,30,15],[21,1,21,5],[22,1,22,3],[22,5,22,9],[22,12,22,15],[23,1,23,3],[23,4,23,9],[24,1,24,15],[47,14,47,15],[48,14,48,15],[40,14,40,15],[41,14,41,15],[42,14,42,15],[43,14,43,15],[44,14,44,15],[45,14,45,15],[46,14,46,15],[31,8,31,9],[31,10,31,11],[31,12,31,13],[31,14,31,15],[26,1,26,4],[27,1,27,4],[28,1,28,4],[30,1,30,6],[30,8,30,9],[30,10,30,11],[31,1,31,6],[32,1,32,6],[32,8,32,9],[32,10,32,11],[32,12,32,13],[32,14,32,15],[33,1,33,15],[34,12,34,15],[34,6,34,8],[34,9,34,11],[35,14,35,15],[36,14,36,15],[37,14,37,15],[38,14,38,15],[39,14,39,15],[34,1,34,5],[35,1,35,3],[36,1,36,3],[37,1,37,3],[38,1,38,3],[39,1,39,3],[40,1,40,3],[41,1,41,3],[42,1,42,3],[43,1,43,3],[44,1,44,3],[45,1,45,3],[46,1,46,3],[47,1,47,3],[50,1,50,5],[51,1,51,5],[70,1,70,15],[71,1,71,5],[71,6,71,9],[71,11,71,12],[71,13,71,15],[72,10,72,11],[72,12,72,15],[72,1,72,9],[73,1,73,2],[73,3,73,4],[73,5,73,6],[73,7,73,8],[73,10,73,11],[73,12,73,15],[48,1,48,5],[48,6,51,7],[48,9,51,10],[48,12,51,13],[49,1,49,5],[49,14,49,15],[50,14,50,15],[57,5,57,9],[57,10,57,11],[51,14,51,15],[52,1,52,9],[52,12,52,13],[52,14,52,15],[53,1,54,15],[56,1,56,15],[57,12,57,15],[57,1,57,4],[58,1,58,8],[58,9,58,15],[59,1,59,5],[59,6,59,8],[59,9,59,10],[59,11,59,15],[60,1,60,15],[61,1,61,15],[62,1,63,15],[64,1,65,15],[66,5,67,8],[66,9,66,13],[66,14,67,15],[67,10,67,11],[66,1,66,4],[67,1,67,2],[67,3,67,4],[68,1,68,2],[68,3,68,4],[68,5,68,8],[68,10,68,11],[82,1,82,15],[83,1,83,5],[83,6,83,10],[83,12,83,13],[83,14,83,15],[75,1,75,15],[76,2,76,9],[76,10,76,15],[77,2,77,9],[77,10,79,15],[78,2,78,9],[79,2,79,9]]}
[]
[]
[null,null,null,null,null,"INSUMO DE CONTRATACIÓN DE BIBLORED\nREQUERIMIENTO DE CONTRATACIÓN\nÁREA CONTRACTUAL, ADMINISTRATIVA Y FINANCIERA\nTRANSPORTE PAX O CARGA"]
[]
[]
[]
[]
[]
[]
[]
[]
[]
[null,"CONCESIÓN 212  DE 2018"]
[null,"FECHA DE ELABORACIÓN:"]
[]
[null,"1. DATOS DE LA LÍNEA SOLICITANTE Y QUE SUPERVISARÁ EL CONTRATO"]
[null,"GERENCIA/SUBGERENCIA:",null,"Seleccione Gerencia …",null,null,null,null,null,"ÁREA",null,"Seleccione Área …"]
[null,"SOLICITANTE Y SUPERVISOR:",null,null,null,null,{"$f":"IFERROR(VLOOKUP(L17,DATOS!#REF!,2,0),\" \")","v":"#ERROR!"},null,null,null,null,"CONSECUTIVO:"]
[null,"CARGO:",null,{"$f":"IFERROR(VLOOKUP(L17,DATOS!#REF!,3,0),\" \")","v":"#ERROR!"},null,null,null,"FIRMA SUPERVISOR"]
[]
[null,"2. INFORMACIÓN SELECCIÓN DEL CONTRATISTA"]
[null,"MODALIDAD DE SELECCIÓN (SELECCIONAR A,B,C O D)",null,null,null,null,"A - DIRECTA",null,"Seleccione Causal …",null,"B - INVITACIÓN A COTIZAR\n(Proveedores BibloRed)","Oferente 1"]
[null,"C - CONVOCATORIA ABIERTA",null,null,"Proceso No.",null,null,null,null,null,null,"Oferente 2"]
[null,"D. OTRA",null,null,null,null,null,null,null,null,null,"Oferente 3"]
[null,"La presente contratación se encuentra inmersa y  se aprueba dentro del plan de acción del área supervisora; y/o se autorizó  en los siguientes comités "]
[null,null,null,null,null,null,null,null,null,null,null,null,"FECHA: PLAN DE ACCIÓN",null,"FECHA: PLAN OPERATIVO"]
[null,"SUBPROGRAMAS"]
[null,"TIPO DE PROCESO"]
[null,"ACCIONES"]
[]
[null,"ACTA DE APROBACIÓN Y AUTORIZACIÓN:",null,null,null,null,null,null,"COMITÉ ",null,"Administrativo Y Financiero",null,"FECHA"]
[null,"ACTA DE APROBACIÓN Y AUTORIZACIÓN:",null,null,null,null,null,null,"COMITÉ ",null,"Técnico ",null,"FECHA"]
[null,"ACTA DE APROBACIÓN Y AUTORIZACIÓN:",null,null,null,null,null,null,"COMITÉ OTRO ¿CUAL?",null,null,null,"FECHA"]
[]
[null,"3, COMPARATIVO OFERENTES / ESTUDIO DE MERCADO TRANSPORTE PAX Y CARGA",null,null,null,null,"OFERENTE \n1 ",null,null,"OFERENTE \n2",null,null,"OFERENTE \nSELECCIONADO"]
[null,"SERVICIO A PRESTAR",null,null,"VEHICULO","BIBLIOTECA","CANT.","PRECIO UNITARIO","PRECIO TOTAL","CANT.","PRECIO UNITARIO","PRECIO TOTAL","CANT.","PRECIO UNITARIO","PRECIO TOTAL"]
[null,"IDA Y REGRESO PUNTO A PUNTO EN BOGOTÁ PAX",null,null,"Seleccione…","Seleccione  …",null,null,{"$f":"G37*H37","v":0},null,null,{"$f":"J37*K37","v":0},null,null,{"$f":"M37*N37","v":0}]
[null,"TRANSPORTE PAX (8 HORAS DÍA)",null,null,"Seleccione…","Seleccione  …",null,null,0,null,null,0,null,null,0]
[null,"IDA Y REGRESO PUNTO A PUNTO PAX - MUNICIPIOS COLINDANTES BOGOTÁ",null,null,"Seleccione…","Seleccione  …",null,null,0,null,null,0,null,null,0]
[null,"Seleccione…",null,null,"Seleccione…","Seleccione  …",null,null,0,null,null,0,null,null,0]
[null,"Seleccione…",null,null,"Seleccione…","Seleccione  …",null,null,0,null,null,0,null,null,0]
[null,"Seleccione…",null,null,"Seleccione…","Seleccione  …",null,null,0,null,null,0,null,null,0]
[null,"Seleccione…",null,null,"Seleccione…","Seleccione  …",null,null,0,null,null,0,null,null,0]
[null,"Seleccione…",null,null,"Seleccione…","Seleccione  …",null,null,0,null,null,0,null,null,0]
[null,"Seleccione…",null,null,"Seleccione…","Seleccione  …",null,null,0,null,null,0,null,null,0]
[null,"Seleccione…",null,null,"Seleccione…","Seleccione  …",null,null,0,null,null,0,null,null,0]
[null,"Seleccione…",null,null,"Seleccione…","Seleccione  …",null,null,0,null,null,0,null,null,0]
[null,"Seleccione…",null,null,"Seleccione…","Seleccione  …",null,null,0,null,null,0,null,null,0]
[null,"SUB-TOTAL:",null,null,null,null,"OBSERVACIONES ",null,{"$f":"SUM(I37:I48)","v":0},"OBSERVACIONES ",null,{"$f":"SUM(L37:L48)","v":0},"OBSERVACIONES",null,{"$f":"SUM(O37:P48)","v":0}]
[null,"DESCUENTO "]
[null,"TOTAL",null,null,null,null,null,null,{"$f":"I49-I50","v":0},null,null,{"$f":"L49-L50","v":0},null,null,{"$f":"O49-O50","v":0}]
[null,"Cotización No."]
[null,"Servicio no determinado - Presupuesto asignado a ejecutar por necesidad y según tárifa aprobada",null,null,null,null,null,null,null,null,"SI","NO","PRESUPUESTO ASIGNADO"]
[null,"OBSERVACIONES"]
[]
[]
[null,"4. CONTRATISTA SELECCIONADO"]
[null,"PERSONA",null,null,null,"Seleccione ..",null,null,null,null,"REGISTRO NO."]
[null,"NOMBRE COMPLETO DEL CONTRATISTA / RAZÓN SOCIAL:"]
[null,"DOCUMENTO DE IDENTIFICACIÓN",null,null,null,null,"Seleccione ..",null,null,"NUMERO"]
[]
[null,"5. INFORMACIÓN PARA LA PROYECCIÓN DEL CONTRATO"]
[null,"NECESIDAD A SATISFACER:"]
[]
[null,"OBLIGACIONES ESPECIFICAS DEL CONTRATISTA:"]
[]
[null,"VIGENCIA DEL CONTRATO",null,null,null,"PRECIO TOTAL DEL SERVICIO/ COMPRA",null,null,null,"FORMA DE PAGO",null,null,null,null,"ANTICIPO 40%"]
[null,"INICIO",null,"TERMINO",null,null,null,null,null,"Mensual","A la satisfacción del objeto",null,"Otra","Cual:"]
[null,null,null,null,null,{"$f":"O53","v":""},null,null,null,null,null,null,null,null,"SÍ","NO"]
[]
[null,"6. INFORMACIÓN PRESUPUESTAL"]
[null,"CUENTA:",null,null,null,null,"Seleccione Cuenta ..",null,null,null,{"$f":"IFERROR(VLOOKUP(G72,DATOS!$N:$O,2,FALSE),\" \")","v":" "},"SUB CUENTA:"]
[null,"CENTRO OPERATIVO:",null,null,null,null,null,null,null,null,"PRESUPUESTO MES",null,"Seleccione mes .."]
[null,"Seleccione  …",null,"Seleccione  …",null,"Seleccione  …",null,"Seleccione  …",null,null,"Otros centros operativos:"]
[]
[null,"7. ACLARACIONES Y MODIFICACIÓNES DE FORMA A MANO ALZADA DEL INSUMO DE CONTRATACIÓN"]
[null,"No.","Aclaración / Modificación",null,null,null,null,null,null,null,"Aprobación Supervisor"]
[null,1.0,null,null,null,null,null,null,null,null,"Firma"]
[null,2.0]
[null,3.0]
[]
[]
[null,"6. ESPACIO PARA DILIGENCIAR POR  LAS REVISIONES"]
[null,"ELABORÓ ",null,null,null,null,null,null,null,null,null,"CARGO:",null,null,"Recibió dd/mm/aaa"]

{"sheet":"Propuesta - Transporte","index":6,"n_rows":9,"n_cols":9,"rows_kept":9,"cut":false,"hidden":true,"merged":[[0,0,0,8],[6,0,6,7],[7,0,7,7],[8,2,8,8]]}
["PROPUESTA COMERCIAL DE PRESTACIÓN DE SERVICIOS DE TRANSPORTE DE CARGA Y/O PASAJEROS"]
["SERVICIO A PRESTAR","VEHICULO","FECHA","HORA","PUNTO PARTIDA","PUNTO LLEGADA","VALOR UNITARIO","CANTIDAD","TOTAL"]
["TRANSPORTE PAX (8 HORAS DÍA)","AUTOMOVIL",null,null,null,null,null,null,{"$f":"G3*H3","v":0}]
[]
[]
[]
["TOTAL",null,null,null,null,null,null,null,{"$f":"SUM(I3:I6)","v":0}]
["NÚMERO DE COTIZACIÓN O PROPUESTA COMERCIAL:"]
[null,null,"Campos no aplican para Servicio no determinado - Presupuesto asignado a ejecutar por necesidad y según tárifa aprobada"]

{"sheet":"10. OTROSÍ","index":7,"n_rows":71,"n_cols":21,"rows_kept":71,"cut":false,"hidden":false,"merged":[[1,19,8,19],[2,6,8,14],[2,15,8,18],[8,2,8,5],[10,2,10,6],[10,7,10,9],[11,2,11,18],[14,2,14,6],[15,2,15,3],[15,4,15,10],[15,11,15,13],[15,14,15,18],[16,2,16,18],[17,2,17,14],[17,15,17,18],[20,2,20,5],[20,6,20,12],[21,2,21,5],[21,6,21,12],[12,2,12,18],[13,2,13,13],[13,14,13,18],[14,7,14,11],[14,12,14,14],[14,15,14,18],[14,20,18,20],[18,2,18,5],[18,6,18,12],[18,13,22,14],[18,15,22,18],[19,2,19,5],[19,6,19,12],[19,20,22,20],[24,9,24,10],[25,9,25,10],[25,11,25,12],[25,13,25,14],[29,11,29,18],[30,11,30,14],[30,15,30,18],[31,11,31,14],[31,15,31,18],[32,11,32,14],[32,15,32,18],[22,2,22,5],[22,6,22,12],[24,2,24,7],[24,11,24,12],[24,13,24,14],[24,15,24,18],[25,15,25,18],[25,2,25,7],[27,2,27,18],[28,2,28,4],[28,5,28,10],[28,11,28,15],[28,16,28,18],[29,2,32,10],[35,14,35,16],[35,17,35,18],[33,2,33,18],[34,3,34,10],[34,11,34,13],[34,14,34,16],[34,17,34,18],[35,3,35,10],[35,11,35,13],[36,3,36,10],[36,11,36,13],[36,14,36,16],[36,17,36,18],[37,11,37,13],[37,14,37,16],[37,17,37,18],[38,2,38,18],[39,3,39,5],[39,6,39,18],[40,3,40,5],[40,6,40,18],[41,2,41,18],[42,2,42,18],[49,6,49,7],[50,6,50,7],[51,2,52,4],[51,6,51,7],[52,6,52,7],[67,10,67,11],[67,13,67,15],[68,13,68,15],[68,16,68,17],[69,13,69,15],[69,16,69,17],[67,2,67,6],[68,2,68,6],[68,7,68,9],[68,10,68,11],[69,2,69,6],[69,7,69,9],[69,10,69,11],[43,2,43,4],[43,5,43,7],[43,8,50,18],[44,2,47,4],[44,5,47,7],[48,2,50,4],[48,6,48,7],[51,8,52,18],[54,2,54,16],[54,17,55,18],[55,2,55,6],[55,7,55,11],[55,12,55,13],[55,14,55,16],[56,11,56,12],[57,11,57,12],[56,2,56,10],[56,13,56,16],[56,17,57,18],[57,2,57,3],[57,4,57,5],[57,6,57,7],[57,8,57,9],[57,13,57,16],[59,2,59,17],[60,3,60,10],[60,11,60,17],[61,3,61,10],[61,11,63,17],[62,3,62,10],[63,3,63,10],[65,2,65,18],[66,2,66,6],[66,7,66,9],[66,10,66,11],[67,7,67,9],[67,16,67,17],[70,2,70,6],[70,7,70,9],[70,10,70,11],[70,13,70,15],[70,16,70,17]]}
[]
[null,null,null,null,null,null,null,null,null,null,null,null,null,null,null,null,null,null,null,"FIC VERSION 3. 01/03/2019"]
[null,null,null,null,null,null,"INSUMO DE CONTRATACIÓN DE BIBLORED\nSOLICITUD DE OTROSÍ\nÁREA CONTRACTUAL ADMINISTRATIVA Y FINANCIERA\nFORMATO No. 10 - MC - SOLICITUD OTROSÍ"]
[]
[]
[]
[]
[]
[null,null,"CONTRATO N° 275 DE 2021"]
[null,null,"CONSORCIO BIBLORED CINDE-PROYECTAMOS"]
[null,null,"FECHA DE ELABORACIÓN:"]
[]
[null,null,"1. SUPERVISIÓN DEL CONTRATO"]
[null,null,"ÁREA",null,null,null,null,null,null,null,null,null,null,null,"Seleccione Área …"]
[null,null,"SOLICITANTE Y SUPERVISOR:",null,null,null,null,"Seleccione Solicitante y Supervisor …",null,null,null,null,"CONSECUTIVO:",null,null,null,null,null,null,null,"En caso de nivel mayor de autorización, según la cuantía, se deberá incluir las casillas y relación de cargos y personal a avalar el documento. "]
[null,null,"CARGO:",null,"Seleccione Cargo…",null,null,null,null,null,null,"FIRMA:"]
[null,null,"La presente contratación se encuentra inmersa y  se aprueba dentro del plan de acción del área supervisora; y/o se autorizó  en los siguientes comités "]
[null,null,"PLAN DE ACCION",null,null,null,null,null,null,null,null,null,null,null,null,"PLAN OPERATIVO - MES"]
[null,null,"LÍNEA BIBLORED RESPONSABLE ",null,null,null,null,null,null,null,null,null,null,"Número-versión de plan de acción:\n\n"]
[null,null,"\nLÍNEAS DEL PLAN",null,null,null,null,null,null,null,null,null,null,null,null,null,null,null,null,null,"En caso de invitación o convocatoria a mayores persona PJ O PN, se deberán aumentar las casillas respectivas. "]
[null,null,"\nESTRATEGIA "]
[null,null,"\nPROGRAMA"]
[null,null,"ACCIONES"]
[]
[null,null,"ACTA DE APROBACIÓN Y AUTORIZACIÓN:",null,null,null,null,null,"SI","COMITÉ ",null,"Técnico y Administrativo",null,"FECHA"]
[null,null,"ACTA DE APROBACIÓN Y AUTORIZACIÓN:",null,null,null,null,null,null,"COMITÉ OTRO ¿CUAL?",null,"Mesa técnica",null,"FECHA"]
[]
[null,null,"2. INFORMACIÓN DEL CONTRATO"]
[null,null,"CONTRATO No.",null,null,null,null,null,null,null,null,"VALOR TOTAL DEL CONTRATO\n(Debe incluirse el valor del contrato a la fecha, incluido adiciones y disminuciones)"]
[null,null,null,null,null,null,null,null,null,null,null,"VIGENCIA CONTRACTUAL\n(El inicio y término a exponer deberá incluir prórrogas y recisiones suscritas a la fecha) "]
[null,null,null,null,null,null,null,null,null,null,null,"Inicio",null,null,null,"Término"]
[]
[null,null,null,null,null,null,null,null,null,null,null,"Cantidad otrosíes celebrados:",null,null,null,0.0]
[null,null,"Relación de documentos contractuales suscritos a la fecha \n(Se deberá incluir las filas que se requieran para exponer la cantidad de documentos contractuales suscritos a la fecha)"]
[null,null,"IT","Modificación, corrección o aclaración",null,null,null,null,null,null,null,"Vigencia prórroga",null,null,"Adición (+) / Disminución(-)",null,null,"Fecha"]
[null,null,1.0]
[null,null,2.0]
[null,null,3.0]
[null,null,"Otros documentos de aplicar (Acta de inicio, suspensión, reactivación, etc.)"]
[null,null,"IT","Tipo de documento",null,null,"Objeto"]
[]
[]
[null,null,"3. INFORMACIÓN PARA LA PROYECCIÓN DEL OTROSÍ"]
[null,null,"MODALIDAD",null,null,"CONCEPTO / VALORES"]
[null,null,"Corrección\nModificaciones\no\nAclaraciones"]
[]
[]
[]
[null,null,"Adición (+) / Disminución (-)",null,null,"Valor a la fecha - Contrato",{"$f":"Q29","v":""}]
[null,null,null,null,null,"Valor a Adicionar / Disminuir","N/A"]
[null,null,null,null,null,"Valor Final - Contrato",{"$f":"SUM(G49:H50)","v":0}]
[null,null,"Prórroga",null,null,"Término a la fecha - Contrato"]
[null,null,null,null,null,"Término Contrato"]
[]
[null,null,"5. INFORMACIÓN PRESUPUESTAL",null,null,null,null,null,null,null,null,null,null,null,null,null,null,"INFORMACIÓN VERIFICADA CON FINANCIERA"]
[null,null,"CUENTA:",null,null,null,null,"Seleccione Cuenta  …",null,null,null,null,"SUB CUENTA:",null,"Seleccione Subcuenta …"]
[null,null,"CENTRO OPERATIVO:",null,null,null,null,null,null,null,null,"PRESUPUESTO MES",null,"Seleccione mes ..",null,null,null,"SI"]
[null,null,"Seleccione  …",null,"Seleccione  …",null,"Seleccione  …",null,"Seleccione  …",null,"Seleccione  …","Otros centros operativos:",null,"Seleccione  …"]
[]
[null,null,"6. ACLARACIONES Y MODIFICACIÓNES DE FORMA - A MANO ALZADA DEL INSUMO DE CONTRATACIÓN"]
[null,null,"No.","Aclaración / Modificación",null,null,null,null,null,null,null,"Aprobación Supervisor"]
[null,null,1.0,null,null,null,null,null,null,null,null,"Firma"]
[null,null,2.0]
[null,null,3.0]
[]
[null,null,"6. ESPACIO PARA DILIGENCIAR POR LAS REVISIONES"]
[null,null,null,null,null,null,null,"NOMBRE",null,null,"FIRMA"]
[null,null,"ELABORÓ ",null,null,null,null,null,null,null,null,null,"CARGO:",null,null,null,"Recibió dd/mm/aaa"]
[null,null,"REVISIÓN TÉCNICA POR PARTE DE LA SUPERVISIÓN DEL CONTRATO: Declaro que he revisado técnicamente la presente solicitud de contratación, conforme la necesidad técnica expuesta ,las autorizaciones respectivas del comité técnico y administrativo y mesa técnica relacionadas , asi como sus valores,caracteristicas del producto y/o servicio y demás detalles de forma y de fondo establecidos en el presente documento y sus anexos de la etapa pre contractual conforme al manual de contratación establecido 275 de 2021.",null,null,null,null,null,null,null,null,null,"CARGO:",null,null,null,"Recibió dd/mm/aaa"]
[null,null,"REVISIÓN JURIDICA : Se revisó desde el aspecto jurídico la presente solicitud de contratación de acuerdo a lo estipulado en el manual de contratación para el contrato 275 de 2021. Declaró que se cumple desde el aspecto juridico los requisitos previos destinados a la etapa pre contractual la presente compra y/o servicio.",null,null,null,null,null,null,null,null,null,"CARGO:",null,null,null,"Recibió dd/mm/aaa"]
[null,null,"REVISIÓN FINANCIERA: Se revisó desde el aspecto financiero las cifras de cada producto y/o servicio a contratar , su derivación tributaria y demás aspectos financieros de conformimdad con el manual de contratación . Declaro con la firma de este documento que se ajusta a la normatividad tributaria y que cumple con los aspectos financieros expuestos en el manual de contratación 275 de 2021",null,null,null,null,null,null,null,null,null,"CARGO:",null,null,null,"Recibió dd/mm/aaa"]

{"sheet":"ORDEN DE COMPRA(Bienes Muebles)","index":8,"n_rows":63,"n_cols":25,"rows_kept":63,"cut":false,"hidden":false,"merged":[[2,8,10,16],[10,1,10,5],[11,1,11,6],[11,10,11,15],[11,17,11,22],[11,23,11,26],[12,1,12,26],[13,1,13,26],[14,1,15,26],[16,1,16,26],[17,1,17,4],[17,5,17,13],[17,14,17,18],[17,19,17,26],[19,14,19,17],[19,18,19,22],[20,15,20,26],[21,1,21,26],[22,18,22,23],[22,24,23,26],[23,18,23,20],[23,21,23,23],[18,1,18,4],[18,5,18,13],[18,14,18,18],[18,19,18,26],[19,5,19,9],[19,11,19,13],[19,24,19,26],[19,1,19,4],[20,1,20,3],[20,4,20,13],[22,1,23,7],[22,8,23,17],[24,1,25,7],[24,8,25,17],[29,1,29,8],[30,1,30,8],[36,3,36,8],[36,9,36,12],[35,1,35,2],[35,3,35,8],[35,9,35,12],[35,13,35,18],[35,24,35,26],[36,1,36,2],[36,13,36,18],[36,24,36,26],[24,18,25,20],[24,21,25,23],[24,24,25,26],[26,8,26,26],[27,8,27,26],[30,9,30,17],[31,1,31,8],[31,9,31,17],[32,1,32,8],[32,9,32,17],[26,1,26,7],[27,1,27,7],[28,1,28,22],[28,23,28,26],[29,9,29,17],[29,18,33,22],[29,23,33,26],[34,19,34,23],[34,24,34,26],[35,22,35,23],[36,22,36,23],[37,22,37,23],[33,1,33,8],[33,9,33,17],[34,1,34,4],[34,5,34,8],[34,9,34,12],[34,13,34,15],[34,16,34,18],[47,13,47,15],[47,16,47,26],[43,1,43,26],[44,1,44,15],[44,16,44,26],[45,1,45,26],[46,1,46,26],[47,5,47,12],[48,1,48,26],[49,16,49,17],[49,18,49,21],[49,22,49,23],[49,24,49,26],[50,1,50,26],[51,1,51,26],[52,1,52,26],[53,1,53,26],[54,1,55,26],[56,1,56,26],[57,1,57,26],[58,6,58,8],[58,9,58,14],[58,15,58,26],[58,1,58,5],[59,1,59,5],[59,6,59,8],[59,9,59,14],[59,15,59,17],[59,18,59,22],[59,23,59,26],[61,6,61,8],[61,9,61,14],[62,1,62,5],[62,6,62,8],[62,9,62,14],[62,15,62,17],[61,15,61,17],[61,18,61,22],[62,18,62,22],[62,23,62,26],[60,1,60,5],[60,6,60,8],[60,9,60,14],[60,15,60,17],[60,18,60,22],[60,23,60,26],[61,1,61,5],[61,23,61,26],[38,9,38,12],[38,13,38,18],[38,22,38,23],[38,24,38,26],[37,1,37,2],[37,3,37,8],[37,9,37,12],[37,13,37,18],[37,24,37,26],[38,1,38,2],[38,3,38,8],[39,22,39,23],[40,22,40,23],[41,22,41,23],[41,24,41,26],[42,24,42,26],[39,1,39,2],[39,3,39,8],[39,9,39,12],[39,13,39,18],[39,24,39,26],[40,1,40,2],[40,13,40,18],[40,24,40,26],[40,3,40,8],[40,9,40,12],[41,1,41,2],[41,3,41,8],[41,9,41,12],[41,13,41,18],[42,1,42,23],[47,1,47,4],[49,1,49,3],[49,4,49,6],[49,7,49,9],[49,10,49,11],[49,12,49,13],[49,14,49,15]]}
[]
[]
[null,null,null,null,null,null,null,null,"ORDEN DE COMPRA Y/O SERVICIO\n(Uso exclusivo para compras o servicios cuya cuantía no exceda de \n6 SMMLV o Grandes contribuyentes)\nFORMATO No. 3 - MC - ORDEN COMPRA Y/O SERVICIO                                                                                        En el marco del Contrato 275 de 2021"]
[]
[]
[]
[]
[]
[]
[]
[null,"CONTRATO N° 275 DE 2021"]
[null,"CONSORCIO BIBLORED CINDE-PROYECTAMOS"]
[null,"I - IDENTIFICACIÓN  DEL CONTRATO MARCO -  ELEMENTOS ESENCIALES DE ORDEN DE COMPRA O SERVICIO"]
[null,"OBJETO DEL MARCO DEL CONTRATO: CONTRATO 275 de 2021 SUSCRITO ENTRE LA SCRD Y CONSORCIO BIBLORED CINDE PROYECTAMOS"]
[null,"“Otorgar la operación  de la red Distrital de Bibliotecas Públicas - BibloRed-”."]
[]
[null,"II - PARTES  DEL CONTRATO DE COMPRAVENTA"]
[null,"CONTRATANTE:",null,null,null,"CONSORCIO BIBLORED - CINDE\nPROYECTAMOS ",null,null,null,null,null,null,null,null,"CONTRATISTA:",null,null,null,null,"XXXXXXXXXXXXXXXXXXXX"]
[null,"NIT",null,null,null,"901.477.160-6",null,null,null,null,null,null,null,null,"CC / NIT",null,null,null,null,"XXXXXXXXXXXXXXXXXXXX"]
[null,"REPRESENTANTE LEGAL",null,null,null,"CAROL ANDREA NIÑO SUÁREZ",null,null,null,null,"C.C",5.2711447E7,null,null,"REPRESENTANTE LEGAL",null,null,null,"XXXXXXXXXXXXX",null,null,null,null,"C.C","XXXXXXXXXXXXX"]
[null,"CONSTITUCIÓN\nPERSONERÍA JURÍDICA:",null,null,"Registrada conforme su\nActa de Constitución de fecha 16 de marzo de 2021 y de acuerdo a la calidad de operador de BibloRed, en el marco del contrato 275 de 2021, suscrito con la Secretaria de Cultura Recreación y Deporte (SCRD),",null,null,null,null,null,null,null,null,null,null,"XXXXXXXXXXXXXXXXXXXXXXXXXXXXXX"]
[null,"III - DATOS DE ORDEN DE COMPRAVENTA O SERVICIO "]
[null,"No. ORDEN",null,null,null,null,null,null,"OBJETO CONTRATO",null,null,null,null,null,null,null,null,null,"VIGENCIA",null,null,null,null,null,"VALOR"]
[null,null,null,null,null,null,null,null,null,null,null,null,null,null,null,null,null,null,"INICIO",null,null,"TÉRMINO"]
[null,null,null,null,null,null,null,null,"EL CONTRATISTA suministrará, en calidad de Compraventa y/o Prestación de servicios, los bienes muebles con sus caracteristicas técnicas, canditad, unidad medida y valor que se relaciona en lo Items de la presente Orden. Estos servicios se prestan de conformidad con la COTIZACIÓN No. xxxxxxxxxxxxx, aprobada por la Supervisión de esta orden, contrato, la cual el contratista aceptó el clausulado general para Orden de Servicio y/o de Compra publicado en el portal web de Biblored, En el marco del Contrato 275 de 2021.",null,null,null,null,null,null,null,null,null,"XXXXXXXXXXXXX",null,null,"xxxxxxxx",null,null,"XXXXXXXXXXXXX"]
[]
[null,"COMITÉ DE ADMINISTRATIVO Y FINANCIERO:"]
[null,"MESA TÉCNICA:"]
[null,"PLAN DE ACCION",null,null,null,null,null,null,null,null,null,null,null,null,null,null,null,null,null,null,null,null,null,"PLAN OPERATIVO - MES"]
[null,"LÍNEA BIBLORED RESPONSABLE ",null,null,null,null,null,null,null,null,null,null,null,null,null,null,null,null,"Número-versión de plan de acción:\n\n"]
[null,"\nLÍNEAS DEL PLAN"]
[null,"\nESTRATEGIA "]
[null,"\nPROGRAMA"]
[null,"ACCIONES"]
[null,"No. COTIZACIÓN:",null,null,null,"xxxxxxxxxxxxxxxxxx",null,null,null,"FECHA LÍMITE DE ENTREGA:",null,null,null,"xxxxxxx",null,null,"TIEMPO DE GARANTÍA: ",null,null,"XXXXXXXXXXXXXXXXXXXX",null,null,null,null,"Contados desde la fecha de entrega"]
[null,"ITÉM",null,"PRODUCTO O SERVICIO",null,null,null,null,null,"UNIDAD DE MEDIDA",null,null,null,"CARACTERISTICAS TÉCNICAS SERVICIO O PRODUCTO",null,null,null,null,null,"CANTIDAD","VALOR UNITARIO","SUBTOTAL","IVA",null,"TOTAL"]
[]
[]
[]
[]
[]
[]
[null,"Total:",null,null,null,null,null,null,null,null,null,null,null,null,null,null,null,null,null,null,null,null,null,null,{"$f":"SUM(Y37:AA42)","v":0}]
[null,"IV - NECESIDAD A SATISFACER Y SUPERVISIÓN DEL CONTRATO"]
[null,"ÁREA",null,null,null,null,null,null,null,null,null,null,null,null,null,null,"Seleccione Área …"]
[null,"NECESIDAD A SATISFACER:"]
[null,"xxxxxxxxxxxxxxxxxxxx"]
[null,"SUPERVISOR:",null,null,null,"Seleccione Solicitante y Supervisor …",null,null,null,null,null,null,null,"CARGO DEL SUP:",null,null,"Seleccione Cargo…"]
[null,"V- EROGACIÓN PRESUPUESTAL \n(La Línea Financiera de Biblored dio viabilidad presupuestal a la presente contratación mediante la expedición de la siguiente Autorización del Gasto – AG)"]
[null,"AP:",null,null,null,null,null,"CE.OP.:",null,null,null,null,"SUBCUENTA:",null,"Seleccione Subcuenta …",null,"DENOMINACIÓN:",null,"Suscripción de publicaciones seriadas",null,null,null,"VALOR:"]
[null,"VII - OBLIGACIONES ESPECÍFICAS DEL CONTRATISTA PARA LA ENTREGA Y TÉRMINOS DE GARANTÍA"]
[null,"xxxxxxxxxxxxxxxxxxxxxx"]
[null," VI - CELEBRACIÓN ORDEN DE COMPRA"]
[null,"SUPERVISIÓN POR PARTE DE CONSORCIO BIBLORED - CINDE\nPROYECTAMOS"]
[]
[]
[null,"FECHA DE SUSCRIPCIÓN: XXXXXXXXXXXXXXXXX"]
[null,"ESPACIO PARA DILIGENCIAR POR  LAS REVISIONES"]
[null,null,null,null,null,null,"NOMBRE",null,null,"FIRMA"]
[null,"ELABORÓ ",null,null,null,null,null,null,null,null,null,null,null,null,null,"CARGO:",null,null,null,null,null,null,null,"Recibió dd/mm/aaa"]
[null,"REVISIÓN TÉCNICA POR PARTE DE LA SUPERVISIÓN DEL CONTRATO: Declaro que he revisado técnicamente la presente solicitud de contratación, conforme la necesidad técnica expuesta ,las autorizaciones respectivas del comité técnico y administrativo y mesa técnica relacionadas , asi como sus valores,caracteristicas del producto y/o servicio y demás detalles de forma y de fondo establecidos en el presente documento y sus anexos de la etapa pre contractual conforme al manual de contratación establecido 275 de 2021.",null,null,null,null,null,null,null,null,null,null,null,null,null,"CARGO:",null,null,null,null,null,null,null,"Recibió dd/mm/aaa"]
[null,"REVISIÓN JURIDICA : Se revisó desde el aspecto jurídico la presente solicitud de contratación de acuerdo a lo estipulado en el manual de contratación para el contrato 275 de 2021. Declaró que se cumple desde el aspecto juridico los requisitos previos destinados a la etapa pre contractual la presente compra y/o servicio.",null,null,null,null,null,null,null,null,null,null,null,null,null,"CARGO:",null,null,null,null,null,null,null,"Recibió dd/mm/aaa"]
[null,"REVISIÓN FINANCIERA: Se revisó desde el aspecto financiero las cifras de cada producto y/o servicio a contratar , su derivación tributaria y demás aspectos financieros de conformimdad con el manual de contratación . Declaro con la firma de este documento que se ajusta a la normatividad tributaria y que cumple con los aspectos financieros expuestos en el manual de contratación 275 de 2021",null,null,null,null,null,null,null,null,null,null,null,null,null,"CARGO:",null,null,null,null,null,null,null,"Recibió dd/mm/aaa"]

{"sheet":"ORDEN DE COMPRA(Material Bibli1","index":9,"n_rows":81,"n_cols":25,"rows_kept":81,"cut":false,"hidden":false,"merged":[[48,24,48,26],[49,1,49,26],[50,1,50,26],[51,1,51,26],[52,1,69,26],[70,1,70,26],[71,1,71,26],[72,1,73,26],[74,1,74,26],[75,1,75,26],[76,1,76,5],[76,6,76,8],[76,9,76,14],[76,15,76,26],[39,2,39,4],[40,2,40,4],[40,5,40,11],[40,12,40,14],[40,15,40,16],[40,18,40,19],[40,20,40,21],[46,5,46,12],[46,13,46,15],[41,1,41,23],[42,1,42,26],[43,1,43,15],[43,16,43,26],[44,1,44,26],[45,1,45,26],[46,1,46,4],[48,14,48,15],[48,16,48,17],[48,18,48,21],[48,22,48,23],[46,16,46,26],[47,1,47,26],[48,1,48,3],[48,4,48,6],[48,7,48,9],[48,10,48,11],[48,12,48,13],[78,15,78,17],[78,18,78,22],[78,23,78,26],[1,8,10,16],[10,1,10,7],[11,1,11,8],[11,10,11,15],[12,1,12,26],[13,1,13,26],[14,1,15,26],[18,14,18,18],[18,19,18,26],[16,1,16,26],[17,1,17,4],[17,5,17,13],[17,14,17,18],[17,19,17,26],[18,1,18,4],[18,5,18,13],[20,4,20,13],[20,15,20,26],[19,1,19,4],[19,5,19,9],[19,11,19,13],[19,14,19,17],[19,18,19,22],[19,24,19,26],[21,1,21,26],[20,1,20,3],[22,1,23,7],[22,8,23,17],[22,18,22,23],[22,24,23,26],[23,18,23,20],[23,21,23,23],[24,1,24,7],[24,8,24,17],[24,18,24,20],[24,21,24,23],[24,24,24,26],[25,1,25,7],[25,8,25,26],[28,18,28,19],[28,20,28,21],[28,22,28,23],[28,24,28,26],[26,1,26,7],[26,8,26,26],[27,1,27,26],[28,2,28,4],[28,5,28,11],[28,12,28,14],[28,15,28,16],[29,5,29,11],[29,12,29,14],[29,15,29,16],[29,18,29,19],[29,20,29,21],[29,22,29,23],[29,24,29,26],[30,22,30,23],[30,24,30,26],[29,2,29,4],[30,2,30,4],[30,5,30,11],[30,12,30,14],[30,15,30,16],[30,18,30,19],[30,20,30,21],[32,22,32,23],[32,24,32,26],[35,5,35,11],[35,12,35,14],[35,15,35,16],[35,18,35,19],[35,20,35,21],[35,22,35,23],[35,24,35,26],[35,2,35,4],[36,2,36,4],[36,5,36,11],[36,12,36,14],[36,15,36,16],[36,18,36,19],[36,20,36,21],[37,5,37,11],[37,12,37,14],[37,15,37,16],[37,18,37,19],[37,20,37,21],[37,22,37,23],[37,24,37,26],[37,2,37,4],[38,2,38,4],[38,5,38,11],[38,12,38,14],[38,15,38,16],[38,18,38,19],[38,20,38,21],[39,20,39,21],[39,22,39,23],[38,22,38,23],[38,24,38,26],[39,5,39,11],[39,12,39,14],[39,15,39,16],[39,18,39,19],[39,24,39,26],[31,5,31,11],[31,12,31,14],[31,15,31,16],[31,18,31,19],[31,20,31,21],[31,22,31,23],[31,24,31,26],[31,2,31,4],[32,2,32,4],[32,5,32,11],[32,12,32,14],[32,15,32,16],[32,18,32,19],[32,20,32,21],[33,5,33,11],[33,12,33,14],[33,15,33,16],[33,18,33,19],[33,20,33,21],[33,22,33,23],[33,24,33,26],[34,22,34,23],[34,24,34,26],[33,2,33,4],[34,2,34,4],[34,5,34,11],[34,12,34,14],[34,15,34,16],[34,18,34,19],[34,20,34,21],[36,22,36,23],[36,24,36,26],[40,22,40,23],[40,24,40,26],[41,24,41,26],[77,1,77,5],[77,6,77,8],[77,9,77,14],[77,15,77,17],[77,18,77,22],[77,23,77,26],[78,1,78,5],[79,1,79,5],[80,1,80,5],[80,6,80,8],[80,9,80,14],[80,15,80,17],[80,18,80,22],[80,23,80,26],[78,6,78,8],[78,9,78,14],[79,6,79,8],[79,9,79,14],[79,15,79,17],[79,18,79,22],[79,23,79,26]]}
[]
[null,null,null,null,null,null,null,null,"ORDEN DE COMPRA \nMATERIAL BIBLIOGRÁFICO\nÁREA DE COLECCIONES\nFORMATO No. 7 - MC - COMPRA MAT. BIBLIOGRÁFICO                               \nEn el marco del Contrato 275 de 2021"]
[]
[]
[]
[]
[]
[]
[]
[]
[null,"CONTRATO N° 275 DE 2021"]
[null,"CONSORCIO BIBLORED CINDE-PROYECTAMOS"]
[null,"I - IDENTIFICACIÓN  DEL CONTRATO MARCO -  ELEMENTOS ESENCIALES DE LA ORDEN DE COMPRA"]
[null,"OBJETO DEL MARCO DEL CONTRATO: CONTRATO 275 de 2021 SUSCRITO ENTRE LA SCRD Y CONSORCIO BIBLORED CINDE PROYECTAMOS"]
[null,"“Otorgar la operación  de la red Distrital de Bibliotecas Públicas - BibloRed-”."]
[]
[null,"II - PARTES  DE LA ORDEN DE COMPRAVENTA"]
[null,"CONTRATANTE:",null,null,null,"CONSORCIO BIBLORED - CINDE\nPROYECTAMOS ",null,null,null,null,null,null,null,null,"CONTRATISTA:",null,null,null,null,"XXXXXX"]
[null,"NIT",null,null,null,"901.477.160-6",null,null,null,null,null,null,null,null,"CC / NIT",null,null,null,null,"XXXXXX"]
[null,"REPRESENTANTE LEGAL",null,null,null,"CAROL ANDREA NIÑO SUÁREZ",null,null,null,null,"C.C",5.2711447E7,null,null,"REPRESENTANTE LEGAL",null,null,null,"XXXXX",null,null,null,null,"C.C","XXXXX"]
[null,"CONSTITUCIÓN\nPERSONERÍA JURÍDICA:",null,null,"Registrada conforme su\nActa de Constitución de fecha 16 de marzo de 2021 y de acuerdo a la calidad de operador de BibloRed, en el marco del contrato 275 de 2021, suscrito con la Secretaria de Cultura Recreación y Deporte (SCRD),",null,null,null,null,null,null,null,null,null,null,"XXXXXXXXXXXXXXXXXX"]
[null,"III - DATOS DE LA ÓRDEN DE COMPRAVENTA "]
[null,"No. ÓRDEN",null,null,null,null,null,null,"OBJETO",null,null,null,null,null,null,null,null,null,"VIGENCIA",null,null,null,null,null,"VALOR"]
[null,null,null,null,null,null,null,null,null,null,null,null,null,null,null,null,null,null,"INICIO",null,null,"TÉRMINO"]
[null,null,null,null,null,null,null,null,"CONSORCIO BIBLORED CINDE PROYECTAMOS , por medio de esta orden acepta la opción de compra del material bibliográfico consignado en BIBLORED bajo la remisión No.xxxxxxxxxxx, y el contratista se obliga a efectuar la transferencia de dominio en la modalidad de compraventa, aceptando íntegramente el presente documento, relacionando en su factura, el número de la presente orden de compra,  en el marco del Contrato 275 de 2021.",null,null,null,null,null,null,null,null,null,"XXXXXXXX",null,null,"XXXXXXX",null,null,"XXXXX"]
[null,"TALLER DE ADQUISICIONES - COLECCIONES:",null,null,null,null,null,null,"XXXXXXXXXXXXXXXXXXXXXXXXXXX"]
[null,"COMITÉ TÉCNICO Y ADMINISTRATIVO Y FINANCIERO:",null,null,null,null,null,null,"XXXXXXXXXXXXXXXXXXXXXXXXXXXX"]
[null,"IV - MATERIAL BIBLIOGRÁFICO "]
[null,"ITM","ISBN",null,null,"TÍTULO",null,null,null,null,null,null,"AUTOR",null,null,"EDITORIAL",null,"PVP","% DESCUENTO",null,"VALOR CON DESCUENTO",null,"CANTIDAD",null,"TOTAL "]
[null,1.0]
[null,2.0]
[null,3.0]
[null,4.0]
[null,5.0]
[null,6.0]
[null,7.0]
[null,8.0]
[null,9.0]
[null,10.0]
[null,11.0]
[null,12.0]
[null,"TOTAL COMPRA:",null,null,null,null,null,null,null,null,null,null,null,null,null,null,null,null,null,null,null,null,null,null,{"$f":"SUM(AB39)","v":0}]
[null,"V - NECESIDAD A SATISFACER Y SUPERVISIÓN DEL ORDEN DE COMPRA"]
[null,"ÁREA",null,null,null,null,null,null,null,null,null,null,null,null,null,null,"Seleccione Área …"]
[null,"NECESIDAD A SATISFACER:"]
[null,"Facilitar el acceso a fuentes y recursos de información de calidad sobre diferentes temáticas y tendencias que respondan a las demandas y necesidades de los usuarios y a los horizontes políticos, pedagógicos, comunitarios y territoriales de la Red. Conformar los fondos bibliográficos, la actualización y el desarrollo de las colecciones de las bibliotecas de BibloRed, la Biblioteca Digital de Bogotá y los espacios no convencionales de lectura (ENCL)."]
[null,"SUPERVISOR:",null,null,null,"Seleccione Solicitante y Supervisor …",null,null,null,null,null,null,null,"CARGO DEL SUP:",null,null,"Seleccione Cargo…"]
[null,"VI - EROGACIÓN PRESUPUESTAL \n(La Línea Financiera de Biblored diligenciará la información de erogación presupuestal y disponibilidad - AG, a mano alzada)"]
[null,"AP:",null,null,null,null,null,"CE.OP.:",null,null,null,null,"CUENTA:",null,"Seleccione Subcuenta …",null,"DENOMINACIÓN:",null,"Seleccione Denominación …",null,null,null,"VALOR:",null,{"$f":"Y42","v":0}]
[null,"VII - OBLIGACIONES ESPECÍFICAS DEL VENDEDOR"]
[null,"1. Reemplazar a sus expensas y a entera satisfacción, sin costo alguno, todos los ejemplares que presenten errores de impresión o encuadernación, en plazo máximo de siete (7) días calendario contados a partir del reporte que le realice la Supervisión del Contrato.\n2. Prestar garantía por el término de tres (3) meses, por defectos de fabricación que afecten la integridad de edición de los ejemplares adquiridos que resulte por su despegue o desencuadernación. \n3. Omitir referencias de otras publicaciones, títulos o series y todo tipo de publicidad.\n4. Presentar el registro de ISBN Colombiano expedido por la Cámara Colombiana del Libro; en caso que estos libros ya tengan registro ISBN extranjero, no será necesario volver a tramitarlo. \n5. Atender las solicitudes y recomendaciones que le informe la Supervisión de este contrato. \n6. Las demás que por la naturaleza del contrato le sean informadas por la Supervisión del Contrato.\n"]
[null,"VIII- CLAUSULADO"]
[null,{"$cut":{"chars":16594,"head":"PRIMERA - OBJETO: CONSORCIO BIBLORED CINDE PROYECTAMOS, por medio de esta orden acepta la opción de compra del material bibliográfico consignado en BIBLORED bajo la remisión No.xxxxxxxxxxx, y el contratista se obliga a efectuar la transferencia de dominio en la modalidad de compraventa, aceptando íntegramente el presente documento, relacionando en su factura, el número de la presente orden de compra,  en el marco del Contrato 275 de 2021.\nSEGUNDA - ALCANCE DEL OBJETO: EL CONTRATANTE se obliga a cumplir con la entrega de los productos o bienes y se compromete a satisfacer todas las obligaciones que se deriven, que permita la materialización del objeto del contrato con la calidad requerida, en términos de buena fe, celeridad, económica, eficiencia y eficacia. Asimismo, a cumplir con las disposiciones, del marco jurídico colombiano, vigentes y que le apliquen, por ocasión y relación a los productos a entregar. En su factura siempre deberá incluir el número de la orden de compra, en el marco del Contrato 275 de 2021.\nTERCERA -OBLIGACIONES GENERALES DEL CONTRATANTE: EL CONTRATANTE se compromete a disponer de toda su capacidad administrativa, profesional, técnica y operativa para que el objeto de este contrato se desarrolle cumpliendo las fechas de entrega, la características técnicas y calidad requerida y específicamente, sin perjuicio de lo establecido como obligaciones específicas del CONTRATANTE, a: 1) Entregar los productos en el tiempo estipulado como fecha límite de entrega y con las especificaciones técnicas establecidas o acordadas, por cualquier medio, con el supervisor del presente contrato.  2) Entregar los bienes objeto de este contrato con remisión.  3) Cumplir la normatividad vigente y aplicable, respecto a los aportes al Sistema de Seguridad Social. 4) Responder por cualquier daño o pérdida sobre bienes de los espacios de las bibliotecas, en que se vea relacionado por culpa o dolo, o cualquier operario, técnico o profesional encargado para dar cumplimiento al objeto del presente Contrato. 5) Establecer contacto continuo con la supervisión de este Contrato, a fin de programar y supervisar las actividades inherentes al cumplimiento del objeto y obligaciones derivadas de la presente relación contractual. 6) Agendar, en acuerdo con la Supervisión de este Contrato, el plan de trabajo que conlleve a la satisfacción del objeto y obligaciones derivadas de la presente relación contractual. 7) Asegurar, de conformidad con las indicaciones, lineamientos y observaciones que le informe la Supervisión de este contrato, el correcto desarrollo, ejecución y cumplimiento del objeto de este contrato y sus obligaciones derivadas. 8) Prestar asesoría con relación y ocasión al objeto de este Contrato, en cada momento que se le requiera por parte de su Supervisión y durante su vigencia. 9) Informar a la Supervisión de ese Contrato en forma inmediata, cualquier situación, novedad o incidente que sea de su conocimiento y pueda entorpecer, dar por terminado y/o afectar la ejecución, desarrollo y satisfacción del objeto de este Contrato y/u obligaciones contractuales. 10) Realizar el control de atención, seguimiento y respuesta a cada solicitud, que, con relación y ocasión al objeto de este Contrato y sus obligaciones derivadas, le realice la Supervisión, y de ser requerido por ésta, presentar informe al respecto. 11) Ser responsable, con ocasión y relación al objeto y obligaciones derivadas de este Contrato, del deber de información, asesoría y alerta que le acoge por ser, en esta relación contractual, la parte con el conocimiento técnico y profesional. 12)  Presentar la factura o documento equivalente cuando esté obligado a ello, según el cronograma de pagos establecido en la cláusula de valor y forma de pago del presente Contrato y acorde al régimen tributario aplicable, anexando los documentos soporte que permitan evidenciar el cumplimiento de las condiciones pactadas, y los documentos que requiera la Subgerencia administrativa y financiera de BibloRed. En todo caso conforme las políticas internas de la Red, CONSORCIO BIBLORED CINDE-"}}]
[]
[]
[]
[]
[]
[]
[]
[]
[]
[]
[]
[]
[]
[]
[]
[]
[]
[null," IX - CELEBRACIÓN ORDEN DE COMPRA POR EL SUPERVISOR"]
[null,"SUPERVISIÓN POR PARTE DE CONSORCIO BIBLORED CINDE-PROYECTAMOS"]
[]
[]
[null,"XXXXXXXXXXXXXXXXXXXXXXXXXXX"]
[null,"ESPACIO PARA DILIGENCIAR POR  LAS REVISIONES"]
[null,null,null,null,null,null,"NOMBRE",null,null,"FIRMA"]
[null,"ELABORÓ ",null,null,null,null,null,null,null,null,null,null,null,null,null,"CARGO:",null,null,null,null,null,null,null,"Recibió dd/mm/aaa"]
[null,"REVISIÓN TÉCNICA POR PARTE DE LA SUPERVISIÓN DEL CONTRATO: Declaro que he revisado técnicamente la presente solicitud de contratación, conforme la necesidad técnica expuesta ,las autorizaciones respectivas del comité técnico y administrativo y mesa técnica relacionadas , asi como sus valores,caracteristicas del producto y/o servicio y demás detalles de forma y de fondo establecidos en el presente documento y sus anexos de la etapa pre contractual conforme al manual de contratación establecido 275 de 2021.",null,null,null,null,null,null,null,null,null,null,null,null,null,"CARGO:",null,null,null,null,null,null,null,"Recibió dd/mm/aaa"]
[null,"REVISIÓN JURIDICA : Se revisó desde el aspecto jurídico la presente solicitud de contratación de acuerdo a lo estipulado en el manual de contratación para el contrato 275 de 2021. Declaró que se cumple desde el aspecto juridico los requisitos previos destinados a la etapa pre contractual la presente compra y/o servicio.",null,null,null,null,null,null,null,null,null,null,null,null,null,"CARGO:",null,null,null,null,null,null,null,"Recibió dd/mm/aaa"]
[null,"REVISIÓN FINANCIERA: Se revisó desde el aspecto financiero las cifras de cada producto y/o servicio a contratar , su derivación tributaria y demás aspectos financieros de conformimdad con el manual de contratación . Declaro con la firma de este documento que se ajusta a la normatividad tributaria y que cumple con los aspectos financieros expuestos en el manual de contratación 275 de 2021",null,null,null,null,null,null,null,null,null,null,null,null,null,"CARGO:",null,null,null,null,null,null,null,"Recibió dd/mm/aaa"]

{"sheet":"4. OPS ACTIVIDADES ARTISTICAS","index":10,"n_rows":70,"n_cols":28,"rows_kept":70,"cut":false,"hidden":false,"merged":[[43,22,43,23],[43,24,43,26],[43,2,43,4],[43,5,43,8],[43,9,43,11],[43,12,43,14],[43,15,43,16],[43,18,43,19],[43,20,43,21],[44,22,44,23],[44,24,44,26],[44,2,44,4],[44,5,44,8],[44,9,44,11],[44,12,44,14],[44,15,44,16],[44,18,44,19],[44,20,44,21],[45,22,45,23],[45,24,45,26],[45,2,45,4],[45,5,45,8],[45,9,45,11],[45,12,45,14],[45,15,45,16],[45,18,45,19],[45,20,45,21],[36,22,36,23],[36,24,36,26],[36,2,36,4],[36,5,36,8],[36,9,36,11],[36,12,36,14],[36,15,36,16],[36,18,36,19],[36,20,36,21],[37,22,37,23],[37,24,37,26],[37,2,37,4],[37,5,37,8],[37,9,37,11],[37,12,37,14],[37,15,37,16],[37,18,37,19],[37,20,37,21],[38,22,38,23],[38,24,38,26],[38,2,38,4],[38,5,38,8],[38,9,38,11],[38,12,38,14],[38,15,38,16],[38,18,38,19],[38,20,38,21],[46,1,46,21],[46,22,46,23],[46,24,46,26],[47,1,47,26],[48,1,48,26],[49,1,49,15],[49,16,49,26],[68,6,68,8],[68,9,68,14],[68,18,68,22],[68,23,68,26],[68,1,68,5],[69,1,69,5],[69,6,69,8],[69,9,69,14],[69,15,69,17],[69,18,69,22],[69,23,69,26],[66,9,66,14],[66,15,66,17],[67,1,67,5],[67,6,67,8],[67,9,67,14],[67,15,67,17],[68,15,68,17],[50,1,50,26],[51,1,51,26],[52,1,52,26],[53,1,53,26],[54,1,54,4],[54,5,54,12],[54,13,54,15],[56,14,56,15],[56,16,56,17],[56,18,56,21],[56,22,56,23],[60,27,63,32],[54,16,54,26],[55,1,55,26],[56,1,56,3],[56,4,56,6],[56,7,56,9],[56,10,56,11],[56,12,56,13],[56,24,56,26],[57,1,57,26],[58,1,58,26],[59,1,59,26],[60,1,60,26],[61,1,62,26],[63,1,63,26],[66,18,66,22],[66,23,66,26],[67,18,67,22],[67,23,67,26],[64,1,64,26],[65,1,65,5],[65,6,65,8],[65,9,65,14],[65,15,65,26],[66,1,66,5],[66,6,66,8],[18,5,18,9],[18,11,18,13],[18,14,18,17],[18,18,18,22],[18,24,18,26],[18,27,22,27],[20,1,20,26],[21,24,22,26],[21,8,22,17],[21,18,21,23],[22,18,22,20],[22,21,22,23],[23,8,23,17],[23,18,23,20],[23,21,23,23],[1,8,9,16],[10,10,10,15],[10,17,10,26],[11,1,11,26],[12,1,12,26],[13,1,14,26],[15,1,15,26],[16,1,16,4],[16,5,16,13],[16,14,16,18],[16,19,16,26],[17,5,17,13],[17,14,17,18],[17,19,17,26],[18,1,18,4],[19,1,19,3],[19,4,19,13],[19,15,19,26],[23,24,23,26],[23,27,25,27],[27,18,31,22],[27,23,31,26],[17,1,17,4],[21,1,22,7],[23,1,23,7],[24,1,24,7],[25,1,25,7],[27,1,27,8],[28,1,28,8],[33,5,33,8],[33,9,33,11],[24,8,24,26],[25,8,25,26],[26,1,26,22],[26,23,26,26],[27,9,27,17],[28,9,28,17],[29,9,29,17],[33,18,33,19],[33,20,33,21],[34,18,34,19],[34,20,34,21],[34,22,34,23],[33,22,33,23],[33,24,33,26],[34,24,34,26],[29,1,29,8],[30,1,30,8],[30,9,30,17],[31,1,31,8],[31,9,31,17],[32,1,32,26],[33,2,33,4],[33,12,33,14],[33,15,33,16],[34,2,34,4],[34,5,34,8],[34,9,34,11],[34,12,34,14],[34,15,34,16],[35,22,35,23],[35,24,35,26],[35,2,35,4],[35,5,35,8],[35,9,35,11],[35,12,35,14],[35,15,35,16],[35,18,35,19],[35,20,35,21],[39,22,39,23],[39,24,39,26],[39,2,39,4],[39,5,39,8],[39,9,39,11],[39,12,39,14],[39,15,39,16],[39,18,39,19],[39,20,39,21],[40,22,40,23],[40,24,40,26],[40,2,40,4],[40,5,40,8],[40,9,40,11],[40,12,40,14],[40,15,40,16],[40,18,40,19],[40,20,40,21],[41,22,41,23],[41,24,41,26],[41,2,41,4],[41,5,41,8],[41,9,41,11],[41,12,41,14],[41,15,41,16],[41,18,41,19],[41,20,41,21],[42,22,42,23],[42,24,42,26],[42,2,42,4],[42,5,42,8],[42,9,42,11],[42,12,42,14],[42,15,42,16],[42,18,42,19],[42,20,42,21]]}
[]
[null,null,null,null,null,null,null,null,"ORDEN DE PRESTACIÓN DE SERVICIOS \nACTIVIDADES ARTÍSTICAS Y/O ACADÉMICAS\nBIBLORED\nFORMATO No. 4 - MC - ORDEN SERV. ARTÍSTICAS Y/O ACADÉMICAS         En el marco del Contrato 275 de 2021"]
[]
[]
[]
[]
[]
[]
[]
[null,"CONTRATO N° 275 DE 2021"]
[null,"CONSORCIO BIBLORED CINDE-PROYECTAMOS"]
[null,"I - IDENTIFICACIÓN  DEL CONTRATO MARCO -  ELEMENTOS ESENCIALES DEL CONTRATO"]
[null,"OBJETO DEL MARCO DEL CONTRATO: CONTRATO 275 de 2021 SUSCRITO ENTRE LA SCRD Y CONSORCIO BIBLORED CINDE PROYECTAMOS"]
[null,"“Otorgar la operación  de la red Distrital de Bibliotecas Públicas - BibloRed-”."]
[]
[null,"II - PARTES  DE LA ORDEN DE PRESTACIÓN DE SERVICIO"]
[null,"CONTRATANTE:",null,null,null,"CONSORCIO BIBLORED - CINDE\nPROYECTAMOS ",null,null,null,null,null,null,null,null,"CONTRATISTA:",null,null,null,null,"XXXXXX"]
[null,"NIT",null,null,null,"901.477.160-6",null,null,null,null,null,null,null,null,"CC / NIT",null,null,null,null,"XXXXXX"]
[null,"REPRESENTANTE LEGAL",null,null,null,"CAROL ANDREA NIÑO SUÁREZ",null,null,null,null,"C.C",5.2711447E7,null,null,"REPRESENTANTE LEGAL",null,null,null,"XXXXX",null,null,null,null,"C.C","XXXXX"]
[null,"CONSTITUCIÓN\nPERSONERÍA JURÍDICA:",null,null,"Registrada conforme su\nActa de Constitución de fecha 16 de marzo de 2021 y de acuerdo a la calidad de operador de BibloRed, en el marco del contrato 275 de 2021, suscrito con la Secretaria de Cultura Recreación y Deporte (SCRD),",null,null,null,null,null,null,null,null,null,null,"XXXXXXXXXXXXXXXXXX"]
[null,"III - DATOS DE LA OPS PARA ACTIVIDADES ARTÍSTICAS Y/O ACADÉMICAS"]
[null,"No. ÓRDEN",null,null,null,null,null,null,"OBJETO",null,null,null,null,null,null,null,null,null,"VIGENCIA",null,null,null,null,null,"VALOR"]
[null,null,null,null,null,null,null,null,null,null,null,null,null,null,null,null,null,null,"INICIO",null,null,"TÉRMINO"]
[null,null,null,null,null,null,null,null,"EL CONTRATISTA, se compromete a prestar sus servicios para  (incluir información sobre el servicio que se prestará) realizando la(s) actividad(es) artísticas y/o académicas, cuya intensidad y temática que se relaciona(n) en el numeral IV de la presente orden, estos servicios se prestan de conformidad con la propuesta comercial y técnica XXXXXXXXXX, en la cual el contratista aceptó el clausulado general para OPS de actividades artísticas y/o académicas publicado en el portal web de Biblored, en el marco del Contrato 275 de 2021 . ",null,null,null,null,null,null,null,null,null,"XXXXXXXX",null,null,"XXXXXXX",null,null,"$XXXXX"]
[null,"COMITÉ DE ADMINISTRATIVO Y FINANCIERO:"]
[null,"MESA TÉCNICA:"]
[null,"PLAN DE ACCION",null,null,null,null,null,null,null,null,null,null,null,null,null,null,null,null,null,null,null,null,null,"PLAN OPERATIVO - MES"]
[null,"LÍNEA BIBLORED RESPONSABLE ",null,null,null,null,null,null,null,null,null,null,null,null,null,null,null,null,"Número-versión de plan de acción:\n\n"]
[null,"\nLÍNEAS DEL PLAN"]
[null,"\nESTRATEGIA "]
[null,"\nPROGRAMA"]
[null,"ACCIONES"]
[null,"IV - ACTIVIDADES ARTÍSTICAS Y/O ACADÉMICAS "]
[null,"ITM","CLASE DE ACTIVIDAD",null,null,"BIBLIOTECA",null,null,null,"CE.OP",null,null,"CUENTA",null,null,"FECHA",null,"HORA","CANTIDAD\nHORAS",null,"VALOR HORA",null,"TOTAL",null,"OBSERVACIONES"]
[null,1.0]
[null,2.0]
[null,3.0]
[null,4.0]
[null,5.0]
[null,6.0]
[null,7.0]
[null,8.0]
[null,9.0]
[null,10.0]
[null,11.0]
[null,12.0]
[null,"TOTAL OPS INCLUIDO CUALQUIER IMPUESTO, TASA O TRIBUTO QUE SE DERIVE:"]
[null,"El Contratista se obliga a tener disponibilidad para el desarrollo de las actividades anteriormente relacionadas conforme el horario de atención al público de las Bibliotecas, en especial para las que aún no sé les ha determinado fecha u hora; por lo que atenderá y cumplirá el agendamiento que realice la Supervisión de este Contrato y que le sea informado, los días iniciales al periodo mensual respectivo, de ejecución.\n\nEl Contratista se obliga a tener disponibilidad para el desarrollo de las actividades anteriormente relacionadas conforme el horario de atención al público de las Bibliotecas, las cuales única y exclusivamente podrá modificar en la fecha y hora, la Supervisión de este Contrato según su necesidad, caso en el cual informará al Contratista con 48 horas de antelación y éste se obliga a cumplir el agendamiento que programe la Supervisión del Contrato."]
[null,"V - NECESIDAD A SATISFACER Y SUPERVISIÓN"]
[null,"ÁREA",null,null,null,null,null,null,null,null,null,null,null,null,null,null,"Seleccione Área …"]
[null,"NECESIDAD A SATISFACER:"]
[null,"PROYECTO:"]
[null,"ÁREA Y OBJETO DEL ÁREA:"]
[null,"NECESIDAD:"]
[null,"SUPERVISOR:",null,null,null,"Seleccione Solicitante y Supervisor …",null,null,null,null,null,null,null,"CARGO DEL SUP:"]
[null,"VI - EROGACIÓN PRESUPUESTAL \n(La Línea Financiera de Biblored diligenciará la información de erogación presupuestal y disponibilidad - AG, a mano alzada)"]
[null,"AP:",null,null,null,null,null,"CE.OP.:",null,null,null,null,"SUBCUENTA:",null,"Seleccione Subcuenta …",null,"DENOMINACIÓN:",null,"Seleccione Denominación …",null,null,null,"VALOR:",null,{"$f":"Y47","v":""}]
[null,"VII - OBLIGACIONES ESPECÍFICAS DEL CONTRATISTA"]
[null,"XXXXXXXXXXXXXXXXXXXXXXXXXXXXXXXXXXXXXXXXXXXXXXXXXXXXXXXXXXXXXXXXXXXXXXXXXXXXXXXX\n"]
[null," IX - CELEBRACIÓN ORDEN DE PRESTACIÓN DE SERVICIO"]
[null,"SUPERVISIÓN POR PARTE DE CONSORCIO BIBLORED - CINDE\nPROYECTAMOS",null,null,null,null,null,null,null,null,null,null,null,null,null,null,null,null,null,null,null,null,null,null,null,null,null,"Fecha de suscripción se diligencia sólo por área jurídica, una vez aprobado el documento. "]
[]
[]
[null," FECHA DE SUSCRIPCIÓN: "]
[null,"ESPACIO PARA DILIGENCIAR POR  LAS REVISIONES"]
[null,null,null,null,null,null,"NOMBRE",null,null,"FIRMA"]
[null,"ELABORÓ ",null,null,null,null,null,null,null,null,null,null,null,null,null,"CARGO:",null,null,null,null,null,null,null,"Recibió dd/mm/aaa"]
[null,"REVISIÓN TÉCNICA POR PARTE DE LA SUPERVISIÓN DEL CONTRATO: Declaro que he revisado técnicamente la presente solicitud de contratación, conforme la necesidad técnica expuesta ,las autorizaciones respectivas del comité técnico y administrativo y mesa técnica relacionadas , asi como sus valores,caracteristicas del producto y/o servicio y demás detalles de forma y de fondo establecidos en el presente documento y sus anexos de la etapa pre contractual conforme al manual de contratación establecido 275 de 2021.",null,null,null,null,null,null,null,null,null,null,null,null,null,"CARGO:",null,null,null,null,null,null,null,"Recibió dd/mm/aaa"]
[null,"REVISIÓN JURIDICA : Se revisó desde el aspecto jurídico la presente solicitud de contratación de acuerdo a lo estipulado en el manual de contratación para el contrato 275 de 2021. Declaró que se cumple desde el aspecto juridico los requisitos previos destinados a la etapa pre contractual la presente compra y/o servicio.",null,null,null,null,null,null,null,null,null,null,null,null,null,"CARGO:",null,null,null,null,null,null,null,"Recibió dd/mm/aaa"]
[null,"REVISIÓN FINANCIERA: Se revisó desde el aspecto financiero las cifras de cada producto y/o servicio a contratar , su derivación tributaria y demás aspectos financieros de conformimdad con el manual de contratación . Declaro con la firma de este documento que se ajusta a la normatividad tributaria y que cumple con los aspectos financieros expuestos en el manual de contratación 275 de 2021",null,null,null,null,null,null,null,null,null,null,null,null,null,"CARGO:",null,null,null,null,null,null,null,"Recibió dd/mm/aaa"]

{"sheet":"Propuesta Productos y servicios","index":11,"n_rows":27,"n_cols":14,"rows_kept":27,"cut":false,"hidden":true,"merged":[[7,1,7,3],[7,4,7,6],[8,1,8,3],[8,4,8,6],[9,1,9,3],[9,4,9,6],[10,4,10,6],[15,1,15,3],[15,4,15,6],[16,1,16,3],[16,4,16,6],[17,1,17,3],[17,4,17,6],[18,1,18,3],[18,4,18,6],[10,1,10,3],[11,1,11,3],[12,1,12,3],[13,1,13,3],[13,4,13,6],[14,1,14,3],[14,4,14,6],[17,13,17,15],[18,13,18,15],[19,13,25,15],[10,13,10,15],[11,13,11,15],[12,13,12,15],[13,13,13,15],[14,13,14,15],[15,13,15,15],[16,13,16,15],[20,11,20,12],[21,11,21,12],[16,11,16,12],[17,11,17,12],[18,11,18,12],[19,0,19,9],[19,11,19,12],[20,0,20,9],[21,0,21,9],[0,0,0,15],[1,0,1,4],[1,5,1,15],[2,1,2,3],[2,4,2,6],[2,11,2,12],[2,13,2,15],[3,1,3,3],[3,4,3,6],[3,11,3,12],[3,13,3,15],[4,4,4,6],[4,11,4,12],[4,13,4,15],[4,1,4,3],[5,1,5,3],[5,4,5,6],[5,11,5,12],[5,13,5,15],[6,1,6,3],[6,4,6,6],[6,11,6,12],[6,13,6,15],[7,11,7,12],[7,13,7,15],[8,11,8,12],[8,13,8,15],[9,13,9,15],[11,4,11,6],[12,4,12,6],[9,11,9,12],[10,11,10,12],[11,11,11,12],[12,11,12,12],[13,11,13,12],[14,11,14,12],[15,11,15,12],[25,0,25,9],[26,0,26,5],[26,6,26,15],[22,0,22,9],[22,11,22,12],[23,0,23,9],[23,11,23,12],[24,0,24,9],[24,11,24,12],[25,11,25,12]]}
["PROPUESTA COMERCIAL  PARA EL SUMINISTRO DE SERVICIOS Y/O BIENES  PARA BIBLORED"]
["Proyecto o programa:"]
["N.","BIBLIOTECA",null,null,"PRODUCTO O SERVICIO",null,null,"UNIDAD MEDIDA","MARCA","CANT.","PRECIO\nUNITARIO","PRECIO TOTAL",null,"OBSERVACIÓN"]
[null,"Seleccione  …",null,null,null,null,null,null,null,null,null,{"$f":"J4*K4","v":0}]
[null,"Seleccione  …",null,null,null,null,null,null,null,null,null,0]
[null,"Seleccione  …",null,null,null,null,null,null,null,null,null,0]
[null,"Seleccione  …",null,null,null,null,null,null,null,null,null,0]
[null,"Seleccione  …",null,null,null,null,null,null,null,null,null,0]
[null,"Seleccione  …",null,null,null,null,null,null,null,null,null,0]
[null,"Seleccione  …",null,null,null,null,null,null,null,null,null,0]
[null,"Seleccione  …",null,null,null,null,null,null,null,null,null,0]
[null,"Seleccione  …",null,null,null,null,null,null,null,null,null,0]
[null,"Seleccione  …",null,null,null,null,null,null,null,null,null,0]
[null,"Seleccione  …",null,null,null,null,null,null,null,null,null,0]
[null,"Seleccione  …",null,null,null,null,null,null,null,null,null,0]
[null,"Seleccione  …",null,null,null,null,null,null,null,null,null,0]
[null,"Seleccione  …",null,null,null,null,null,null,null,null,null,0]
[null,"Seleccione  …",null,null,null,null,null,null,null,null,null,0]
[null,"Seleccione  …",null,null,null,null,null,null,null,null,null,0]
["SUB-TOTAL:",null,null,null,null,null,null,null,null,null,{"$f":"SUM(K4:K19)","v":0},{"$f":"SUM(L4:M19)","v":0}]
["DESCUENTO ",null,null,null,null,null,null,null,null,null,{"$f":"SUM(K17:K20)","v":0}]
["ADMINISTRACIÓN",null,null,null,null,null,null,null,null,null,0]
["IMPREVISTOS",null,null,null,null,null,null,null,null,null,0]
["UTILIDAD",null,null,null,null,null,null,null,null,null,0]
["IVA ",null,null,null,null,null,null,null,null,null,0,{"$f":"L20*0.19","v":0}]
["TOTAL",null,null,null,null,null,null,null,null,null,0,{"$f":"L20+L25","v":0}]
["COTIZACIÓN:"]